{"text_format":"1","workbook":"xlsx","n_sheets":4,"sheets":["Inicio","Siniestros Asignados","Asignados Periodos Anteriores","Base"],"not_rendered":{"charts":0,"images":2,"macros":1,"external_links":0,"defined_names":3,"comments":0,"pivot_tables":0},"unopened":[],"bounds":{"document_bytes":16777216,"sheet_cells":100000,"rows_first":2000,"rows_last":500,"rows_between":2000,"halvings":0,"cell_chars":16384,"cell_head_chars":4096},"cells_cut":0,"cells_raw":0,"read":"whole","date_system":"1900"}

{"sheet":"Inicio","index":0,"n_rows":8,"n_cols":4,"rows_kept":8,"cut":false,"hidden":false,"merged":[[5,1,5,2],[3,1,3,2],[7,1,7,2]]}
[]
["Información Agregada Liquidador de Siniestros"]
[]
["Rut:",123456789,null,"Ingrese el Rut sin punto ni guiones"]
[]
["Nombre Liquidador:",{"$f":"+VLOOKUP(B4,Base!$T$1:$V$299,2,0)","v":"NOMBRE ENTIDAD"}]
[]
["Periodo","2023-12"]

{"sheet":"Siniestros Asignados","index":1,"n_rows":250,"n_cols":28,"rows_kept":250,"cut":false,"hidden":false,"merged":[[5,12,5,15],[0,0,1,10],[3,0,3,13],[6,0,6,1]]}
["Siniestros Asignados"]
[]
[]
[]
[]
[null,null,null,null,null,null,null,null,null,null,null,null,"Motivo de no Pago"]
["Grupo",null,"Compañía","Ramo","N° de Siniestros Asignados","N° de Siniestros Liquidados","Con Recomendación de pago","Plazo Promedio con Pago","Monto Promedio","Monto Efectivo de Pago","Sin Recomendación de pago","Plazo Promedio sin Pago","1.- Sin Cobertura","2.- Bajo deducible","3.- Incumplimiento de contrato por parte del asegurado","4.- Otros","Detalle Otros","Validador",null,null,"MinG","MaxG","MinI","MaxI","MaxL","MaxM","MaxN","ValorK"]
[1,{"$f":"IFERROR(VLOOKUP(A8,Base!$C$2:$D$3,2,0),\"\")","v":"General"},null,null,null,null,null,null,null,null,null,null,null,null,null,null,null,{"$f":"IF(K8=\"\",\"\",IF(SUM(M8:P8)=K8,\"Suma motivo de Pago correcto\",\"Existe un error en la suma de Motivo de Pago\"))","v":""},null,null,{"$f":"IF(LEN(K8)=0,0,F8-K8)","v":0},{"$f":"IF(LEN(K8)=0,F8,F8-K8)","v":0},{"$f":"IF(LEN(G8)=0,0,F8-G8)","v":0},{"$f":"IF(LEN(G8)=0,F8,F8-G8)","v":0},{"$f":"IF(AND(LEN(N8)=0,LEN(O8)=0,LEN(P8)=0),K8,K8-N8-O8-P8)","v":0},{"$f":"IF(AND(LEN(M8)=0,LEN(O8)=0,LEN(P8)=0),K8,K8-M8-O8-P8)","v":0},{"$f":"IF(AND(LEN(M8)=0,LEN(N8)=0,LEN(P8)=0),K8,K8-M8-N8-P8)","v":0},{"$f":"IF(AND(LEN(M8)=0,LEN(N8)=0,LEN(O8)=0),K8,K8-M8-N8-O8)","v":0}]
[null,{"$f":"IFERROR(VLOOKUP(A9,Base!$C$2:$D$3,2,0),\"\")","v":""},null,null,null,null,null,null,null,null,null,null,null,null,null,null,null,{"$f":"IF(K9=\"\",\"\",IF(SUM(M9:P9)=K9,\"Suma motivo de Pago correcto\",\"Existe un error en la suma de Motivo de Pago\"))","v":""},null,null,0,0,0,0,0,0,0,0]
[null,{"$f":"IFERROR(VLOOKUP(A10,Base!$C$2:$D$3,2,0),\"\")","v":""},null,null,null,null,null,null,null,null,null,null,null,null,null,null,null,"",null,null,0,0,0,0,0,0,0,0]
[null,{"$f":"IFERROR(VLOOKUP(A11,Base!$C$2:$D$3,2,0),\"\")","v":""},null,null,null,null,null,null,null,null,null,null,null,null,null,null,null,"",null,null,0,0,0,0,0,0,0,0]
[null,{"$f":"IFERROR(VLOOKUP(A12,Base!$C$2:$D$3,2,0),\"\")","v":""},null,null,null,null,null,null,null,null,null,null,null,null,null,null,null,"",null,null,0,0,0,0,0,0,0,0]
[null,{"$f":"IFERROR(VLOOKUP(A13,Base!$C$2:$D$3,2,0),\"\")","v":""},null,null,null,null,null,null,null,null,null,null,null,null,null,null,null,"",null,null,{"$f":"IF(LEN(K13)=0,0,F13-K13)","v":0},{"$f":"IF(LEN(K13)=0,F13,F13-K13)","v":0},{"$f":"IF(LEN(G13)=0,0,F13-G13)","v":0},{"$f":"IF(LEN(G13)=0,F13,F13-G13)","v":0},{"$f":"IF(AND(LEN(N13)=0,LEN(O13)=0,LEN(P13)=0),K13,K13-N13-O13-P13)","v":0},{"$f":"IF(AND(LEN(M13)=0,LEN(O13)=0,LEN(P13)=0),K13,K13-M13-O13-P13)","v":0},{"$f":"IF(AND(LEN(M13)=0,LEN(N13)=0,LEN(P13)=0),K13,K13-M13-N13-P13)","v":0},{"$f":"IF(AND(LEN(M13)=0,LEN(N13)=0,LEN(O13)=0),K13,K13-M13-N13-O13)","v":0}]
[null,{"$f":"IFERROR(VLOOKUP(A14,Base!$C$2:$D$3,2,0),\"\")","v":""},null,null,null,null,null,null,null,null,null,null,null,null,null,null,null,"",null,null,0,0,0,0,0,0,0,0]
[null,{"$f":"IFERROR(VLOOKUP(A15,Base!$C$2:$D$3,2,0),\"\")","v":""},null,null,null,null,null,null,null,null,null,null,null,null,null,null,null,"",null,null,0,0,0,0,0,0,0,0]
[null,{"$f":"IFERROR(VLOOKUP(A16,Base!$C$2:$D$3,2,0),\"\")","v":""},null,null,null,null,null,null,null,null,null,null,null,null,null,null,null,"",null,null,0,0,0,0,0,0,0,0]
[null,{"$f":"IFERROR(VLOOKUP(A17,Base!$C$2:$D$3,2,0),\"\")","v":""},null,null,null,null,null,null,null,null,null,null,null,null,null,null,null,"",null,null,0,0,0,0,0,0,0,0]
[null,{"$f":"IFERROR(VLOOKUP(A18,Base!$C$2:$D$3,2,0),\"\")","v":""},null,null,null,null,null,null,null,null,null,null,null,null,null,null,null,"",null,null,0,0,0,0,0,0,0,0]
[null,{"$f":"IFERROR(VLOOKUP(A19,Base!$C$2:$D$3,2,0),\"\")","v":""},null,null,null,null,null,null,null,null,null,null,null,null,null,null,null,"",null,null,0,0,0,0,0,0,0,0]
[null,{"$f":"IFERROR(VLOOKUP(A20,Base!$C$2:$D$3,2,0),\"\")","v":""},null,null,null,null,null,null,null,null,null,null,null,null,null,null,null,"",null,null,0,0,0,0,0,0,0,0]
[null,{"$f":"IFERROR(VLOOKUP(A21,Base!$C$2:$D$3,2,0),\"\")","v":""},null,null,null,null,null,null,null,null,null,null,null,null,null,null,null,"",null,null,0,0,0,0,0,0,0,0]
[null,{"$f":"IFERROR(VLOOKUP(A22,Base!$C$2:$D$3,2,0),\"\")","v":""},null,null,null,null,null,null,null,null,null,null,null,null,null,null,null,"",null,null,0,0,0,0,0,0,0,0]
[null,{"$f":"IFERROR(VLOOKUP(A23,Base!$C$2:$D$3,2,0),\"\")","v":""},null,null,null,null,null,null,null,null,null,null,null,null,null,null,null,"",null,null,0,0,0,0,0,0,0,0]
[null,{"$f":"IFERROR(VLOOKUP(A24,Base!$C$2:$D$3,2,0),\"\")","v":""},null,null,null,null,null,null,null,null,null,null,null,null,null,null,null,"",null,null,0,0,0,0,0,0,0,0]
[null,{"$f":"IFERROR(VLOOKUP(A25,Base!$C$2:$D$3,2,0),\"\")","v":""},null,null,null,null,null,null,null,null,null,null,null,null,null,null,null,"",null,null,0,0,0,0,0,0,0,0]
[null,{"$f":"IFERROR(VLOOKUP(A26,Base!$C$2:$D$3,2,0),\"\")","v":""},null,null,null,null,null,null,null,null,null,null,null,null,null,null,null,{"$f":"IF(K26=\"\",\"\",IF(SUM(M26:P26)=K26,\"Suma motivo de Pago correcto\",\"Existe un error en la suma de Motivo de Pago\"))","v":""},null,null,0,0,0,0,0,0,0,0]
[null,{"$f":"IFERROR(VLOOKUP(A27,Base!$C$2:$D$3,2,0),\"\")","v":""},null,null,null,null,null,null,null,null,null,null,null,null,null,null,null,"",null,null,0,0,0,0,0,0,0,0]
[null,{"$f":"IFERROR(VLOOKUP(A28,Base!$C$2:$D$3,2,0),\"\")","v":""},null,null,null,null,null,null,null,null,null,null,null,null,null,null,null,"",null,null,0,0,0,0,0,0,0,0]
[null,{"$f":"IFERROR(VLOOKUP(A29,Base!$C$2:$D$3,2,0),\"\")","v":""},null,null,null,null,null,null,null,null,null,null,null,null,null,null,null,"",null,null,0,0,0,0,0,0,0,0]
[null,{"$f":"IFERROR(VLOOKUP(A30,Base!$C$2:$D$3,2,0),\"\")","v":""},null,null,null,null,null,null,null,null,null,null,null,null,null,null,null,{"$f":"IF(K30=\"\",\"\",IF(SUM(M30:P30)=K30,\"Suma motivo de Pago correcto\",\"Existe un error en la suma de Motivo de Pago\"))","v":""},null,null,0,0,0,0,0,0,0,0]
[null,{"$f":"IFERROR(VLOOKUP(A31,Base!$C$2:$D$3,2,0),\"\")","v":""},null,null,null,null,null,null,null,null,null,null,null,null,null,null,null,"",null,null,0,0,0,0,0,0,0,0]
[null,{"$f":"IFERROR(VLOOKUP(A32,Base!$C$2:$D$3,2,0),\"\")","v":""},null,null,null,null,null,null,null,null,null,null,null,null,null,null,null,"",null,null,0,0,0,0,0,0,0,0]
[null,{"$f":"IFERROR(VLOOKUP(A33,Base!$C$2:$D$3,2,0),\"\")","v":""},null,null,null,null,null,null,null,null,null,null,null,null,null,null,null,"",null,null,0,0,0,0,0,0,0,0]
[null,{"$f":"IFERROR(VLOOKUP(A34,Base!$C$2:$D$3,2,0),\"\")","v":""},null,null,null,null,null,null,null,null,null,null,null,null,null,null,null,"",null,null,0,0,0,0,0,0,0,0]
[null,{"$f":"IFERROR(VLOOKUP(A35,Base!$C$2:$D$3,2,0),\"\")","v":""},null,null,null,null,null,null,null,null,null,null,null,null,null,null,null,"",null,null,0,0,0,0,0,0,0,0]
[null,{"$f":"IFERROR(VLOOKUP(A36,Base!$C$2:$D$3,2,0),\"\")","v":""},null,null,null,null,null,null,null,null,null,null,null,null,null,null,null,"",null,null,0,0,0,0,0,0,0,0]
[null,{"$f":"IFERROR(VLOOKUP(A37,Base!$C$2:$D$3,2,0),\"\")","v":""},null,null,null,null,null,null,null,null,null,null,null,null,null,null,null,"",null,null,0,0,0,0,0,0,0,0]
[null,{"$f":"IFERROR(VLOOKUP(A38,Base!$C$2:$D$3,2,0),\"\")","v":""},null,null,null,null,null,null,null,null,null,null,null,null,null,null,null,"",null,null,0,0,0,0,0,0,0,0]
[null,{"$f":"IFERROR(VLOOKUP(A39,Base!$C$2:$D$3,2,0),\"\")","v":""},null,null,null,null,null,null,null,null,null,null,null,null,null,null,null,"",null,null,0,0,0,0,0,0,0,0]
[null,{"$f":"IFERROR(VLOOKUP(A40,Base!$C$2:$D$3,2,0),\"\")","v":""},null,null,null,null,null,null,null,null,null,null,null,null,null,null,null,"",null,null,0,0,0,0,0,0,0,0]
[null,{"$f":"IFERROR(VLOOKUP(A41,Base!$C$2:$D$3,2,0),\"\")","v":""},null,null,null,null,null,null,null,null,null,null,null,null,null,null,null,"",null,null,0,0,0,0,0,0,0,0]
[null,{"$f":"IFERROR(VLOOKUP(A42,Base!$C$2:$D$3,2,0),\"\")","v":""},null,null,null,null,null,null,null,null,null,null,null,null,null,null,null,"",null,null,0,0,0,0,0,0,0,0]
[null,{"$f":"IFERROR(VLOOKUP(A43,Base!$C$2:$D$3,2,0),\"\")","v":""},null,null,null,null,null,null,null,null,null,null,null,null,null,null,null,"",null,null,0,0,0,0,0,0,0,0]
[null,{"$f":"IFERROR(VLOOKUP(A44,Base!$C$2:$D$3,2,0),\"\")","v":""},null,null,null,null,null,null,null,null,null,null,null,null,null,null,null,"",null,null,0,0,0,0,0,0,0,0]
[null,{"$f":"IFERROR(VLOOKUP(A45,Base!$C$2:$D$3,2,0),\"\")","v":""},null,null,null,null,null,null,null,null,null,null,null,null,null,null,null,"",null,null,0,0,0,0,0,0,0,0]
[null,{"$f":"IFERROR(VLOOKUP(A46,Base!$C$2:$D$3,2,0),\"\")","v":""},null,null,null,null,null,null,null,null,null,null,null,null,null,null,null,"",null,null,0,0,0,0,0,0,0,0]
[null,{"$f":"IFERROR(VLOOKUP(A47,Base!$C$2:$D$3,2,0),\"\")","v":""},null,null,null,null,null,null,null,null,null,null,null,null,null,null,null,"",null,null,0,0,0,0,0,0,0,0]
[null,{"$f":"IFERROR(VLOOKUP(A48,Base!$C$2:$D$3,2,0),\"\")","v":""},null,null,null,null,null,null,null,null,null,null,null,null,null,null,null,"",null,null,0,0,0,0,0,0,0,0]
[null,{"$f":"IFERROR(VLOOKUP(A49,Base!$C$2:$D$3,2,0),\"\")","v":""},null,null,null,null,null,null,null,null,null,null,null,null,null,null,null,"",null,null,0,0,0,0,0,0,0,0]
[null,{"$f":"IFERROR(VLOOKUP(A50,Base!$C$2:$D$3,2,0),\"\")","v":""},null,null,null,null,null,null,null,null,null,null,null,null,null,null,null,"",null,null,0,0,0,0,0,0,0,0]
[null,{"$f":"IFERROR(VLOOKUP(A51,Base!$C$2:$D$3,2,0),\"\")","v":""},null,null,null,null,null,null,null,null,null,null,null,null,null,null,null,"",null,null,0,0,0,0,0,0,0,0]
[null,{"$f":"IFERROR(VLOOKUP(A52,Base!$C$2:$D$3,2,0),\"\")","v":""},null,null,null,null,null,null,null,null,null,null,null,null,null,null,null,"",null,null,0,0,0,0,0,0,0,0]
[null,{"$f":"IFERROR(VLOOKUP(A53,Base!$C$2:$D$3,2,0),\"\")","v":""},null,null,null,null,null,null,null,null,null,null,null,null,null,null,null,"",null,null,0,0,0,0,0,0,0,0]
[null,{"$f":"IFERROR(VLOOKUP(A54,Base!$C$2:$D$3,2,0),\"\")","v":""},null,null,null,null,null,null,null,null,null,null,null,null,null,null,null,"",null,null,0,0,0,0,0,0,0,0]
[null,{"$f":"IFERROR(VLOOKUP(A55,Base!$C$2:$D$3,2,0),\"\")","v":""},null,null,null,null,null,null,null,null,null,null,null,null,null,null,null,"",null,null,0,0,0,0,0,0,0,0]
[null,{"$f":"IFERROR(VLOOKUP(A56,Base!$C$2:$D$3,2,0),\"\")","v":""},null,null,null,null,null,null,null,null,null,null,null,null,null,null,null,"",null,null,0,0,0,0,0,0,0,0]
[null,{"$f":"IFERROR(VLOOKUP(A57,Base!$C$2:$D$3,2,0),\"\")","v":""},null,null,null,null,null,null,null,null,null,null,null,null,null,null,null,"",null,null,0,0,0,0,0,0,0,0]
[null,{"$f":"IFERROR(VLOOKUP(A58,Base!$C$2:$D$3,2,0),\"\")","v":""},null,null,null,null,null,null,null,null,null,null,null,null,null,null,null,"",null,null,0,0,0,0,0,0,0,0]
[null,{"$f":"IFERROR(VLOOKUP(A59,Base!$C$2:$D$3,2,0),\"\")","v":""},null,null,null,null,null,null,null,null,null,null,null,null,null,null,null,"",null,null,0,0,0,0,0,0,0,0]
[null,{"$f":"IFERROR(VLOOKUP(A60,Base!$C$2:$D$3,2,0),\"\")","v":""},null,null,null,null,null,null,null,null,null,null,null,null,null,null,null,"",null,null,0,0,0,0,0,0,0,0]
[null,{"$f":"IFERROR(VLOOKUP(A61,Base!$C$2:$D$3,2,0),\"\")","v":""},null,null,null,null,null,null,null,null,null,null,null,null,null,null,null,"",null,null,0,0,0,0,0,0,0,0]
[null,{"$f":"IFERROR(VLOOKUP(A62,Base!$C$2:$D$3,2,0),\"\")","v":""},null,null,null,null,null,null,null,null,null,null,null,null,null,null,null,"",null,null,0,0,0,0,0,0,0,0]
[null,{"$f":"IFERROR(VLOOKUP(A63,Base!$C$2:$D$3,2,0),\"\")","v":""},null,null,null,null,null,null,null,null,null,null,null,null,null,null,null,"",null,null,0,0,0,0,0,0,0,0]
[null,{"$f":"IFERROR(VLOOKUP(A64,Base!$C$2:$D$3,2,0),\"\")","v":""},null,null,null,null,null,null,null,null,null,null,null,null,null,null,null,"",null,null,0,0,0,0,0,0,0,0]
[null,{"$f":"IFERROR(VLOOKUP(A65,Base!$C$2:$D$3,2,0),\"\")","v":""},null,null,null,null,null,null,null,null,null,null,null,null,null,null,null,"",null,null,0,0,0,0,0,0,0,0]
[null,{"$f":"IFERROR(VLOOKUP(A66,Base!$C$2:$D$3,2,0),\"\")","v":""},null,null,null,null,null,null,null,null,null,null,null,null,null,null,null,"",null,null,0,0,0,0,0,0,0,0]
[null,{"$f":"IFERROR(VLOOKUP(A67,Base!$C$2:$D$3,2,0),\"\")","v":""},null,null,null,null,null,null,null,null,null,null,null,null,null,null,null,"",null,null,0,0,0,0,0,0,0,0]
[null,{"$f":"IFERROR(VLOOKUP(A68,Base!$C$2:$D$3,2,0),\"\")","v":""},null,null,null,null,null,null,null,null,null,null,null,null,null,null,null,"",null,null,0,0,0,0,0,0,0,0]
[null,{"$f":"IFERROR(VLOOKUP(A69,Base!$C$2:$D$3,2,0),\"\")","v":""},null,null,null,null,null,null,null,null,null,null,null,null,null,null,null,"",null,null,0,0,0,0,0,0,0,0]
[null,{"$f":"IFERROR(VLOOKUP(A70,Base!$C$2:$D$3,2,0),\"\")","v":""},null,null,null,null,null,null,null,null,null,null,null,null,null,null,null,{"$f":"IF(K70=\"\",\"\",IF(SUM(M70:P70)=K70,\"Suma motivo de Pago correcto\",\"Existe un error en la suma de Motivo de Pago\"))","v":""},null,null,0,0,0,0,0,0,0,0]
[null,{"$f":"IFERROR(VLOOKUP(A71,Base!$C$2:$D$3,2,0),\"\")","v":""},null,null,null,null,null,null,null,null,null,null,null,null,null,null,null,"",null,null,{"$f":"IF(LEN(K71)=0,0,F71-K71)","v":0},{"$f":"IF(LEN(K71)=0,F71,F71-K71)","v":0},{"$f":"IF(LEN(G71)=0,0,F71-G71)","v":0},{"$f":"IF(LEN(G71)=0,F71,F71-G71)","v":0},{"$f":"IF(AND(LEN(N71)=0,LEN(O71)=0,LEN(P71)=0),K71,K71-N71-O71-P71)","v":0},{"$f":"IF(AND(LEN(M71)=0,LEN(O71)=0,LEN(P71)=0),K71,K71-M71-O71-P71)","v":0},{"$f":"IF(AND(LEN(M71)=0,LEN(N71)=0,LEN(P71)=0),K71,K71-M71-N71-P71)","v":0},{"$f":"IF(AND(LEN(M71)=0,LEN(N71)=0,LEN(O71)=0),K71,K71-M71-N71-O71)","v":0}]
[null,{"$f":"IFERROR(VLOOKUP(A72,Base!$C$2:$D$3,2,0),\"\")","v":""},null,null,null,null,null,null,null,null,null,null,null,null,null,null,null,"",null,null,0,0,0,0,0,0,0,0]
[null,{"$f":"IFERROR(VLOOKUP(A73,Base!$C$2:$D$3,2,0),\"\")","v":""},null,null,null,null,null,null,null,null,null,null,null,null,null,null,null,"",null,null,0,0,0,0,0,0,0,0]
[null,{"$f":"IFERROR(VLOOKUP(A74,Base!$C$2:$D$3,2,0),\"\")","v":""},null,null,null,null,null,null,null,null,null,null,null,null,null,null,null,"",null,null,0,0,0,0,0,0,0,0]
[null,{"$f":"IFERROR(VLOOKUP(A75,Base!$C$2:$D$3,2,0),\"\")","v":""},null,null,null,null,null,null,null,null,null,null,null,null,null,null,null,"",null,null,0,0,0,0,0,0,0,0]
[null,{"$f":"IFERROR(VLOOKUP(A76,Base!$C$2:$D$3,2,0),\"\")","v":""},null,null,null,null,null,null,null,null,null,null,null,null,null,null,null,"",null,null,0,0,0,0,0,0,0,0]
[null,{"$f":"IFERROR(VLOOKUP(A77,Base!$C$2:$D$3,2,0),\"\")","v":""},null,null,null,null,null,null,null,null,null,null,null,null,null,null,null,"",null,null,0,0,0,0,0,0,0,0]
[null,{"$f":"IFERROR(VLOOKUP(A78,Base!$C$2:$D$3,2,0),\"\")","v":""},null,null,null,null,null,null,null,null,null,null,null,null,null,null,null,"",null,null,0,0,0,0,0,0,0,0]
[null,{"$f":"IFERROR(VLOOKUP(A79,Base!$C$2:$D$3,2,0),\"\")","v":""},null,null,null,null,null,null,null,null,null,null,null,null,null,null,null,"",null,null,0,0,0,0,0,0,0,0]
[null,{"$f":"IFERROR(VLOOKUP(A80,Base!$C$2:$D$3,2,0),\"\")","v":""},null,null,null,null,null,null,null,null,null,null,null,null,null,null,null,"",null,null,0,0,0,0,0,0,0,0]
[null,{"$f":"IFERROR(VLOOKUP(A81,Base!$C$2:$D$3,2,0),\"\")","v":""},null,null,null,null,null,null,null,null,null,null,null,null,null,null,null,"",null,null,0,0,0,0,0,0,0,0]
[null,{"$f":"IFERROR(VLOOKUP(A82,Base!$C$2:$D$3,2,0),\"\")","v":""},null,null,null,null,null,null,null,null,null,null,null,null,null,null,null,"",null,null,0,0,0,0,0,0,0,0]
[null,{"$f":"IFERROR(VLOOKUP(A83,Base!$C$2:$D$3,2,0),\"\")","v":""},null,null,null,null,null,null,null,null,null,null,null,null,null,null,null,"",null,null,0,0,0,0,0,0,0,0]
[null,{"$f":"IFERROR(VLOOKUP(A84,Base!$C$2:$D$3,2,0),\"\")","v":""},null,null,null,null,null,null,null,null,null,null,null,null,null,null,null,"",null,null,0,0,0,0,0,0,0,0]
[null,{"$f":"IFERROR(VLOOKUP(A85,Base!$C$2:$D$3,2,0),\"\")","v":""},null,null,null,null,null,null,null,null,null,null,null,null,null,null,null,"",null,null,0,0,0,0,0,0,0,0]
[null,{"$f":"IFERROR(VLOOKUP(A86,Base!$C$2:$D$3,2,0),\"\")","v":""},null,null,null,null,null,null,null,null,null,null,null,null,null,null,null,"",null,null,0,0,0,0,0,0,0,0]
[null,{"$f":"IFERROR(VLOOKUP(A87,Base!$C$2:$D$3,2,0),\"\")","v":""},null,null,null,null,null,null,null,null,null,null,null,null,null,null,null,"",null,null,0,0,0,0,0,0,0,0]
[null,{"$f":"IFERROR(VLOOKUP(A88,Base!$C$2:$D$3,2,0),\"\")","v":""},null,null,null,null,null,null,null,null,null,null,null,null,null,null,null,"",null,null,0,0,0,0,0,0,0,0]
[null,{"$f":"IFERROR(VLOOKUP(A89,Base!$C$2:$D$3,2,0),\"\")","v":""},null,null,null,null,null,null,null,null,null,null,null,null,null,null,null,"",null,null,0,0,0,0,0,0,0,0]
[null,{"$f":"IFERROR(VLOOKUP(A90,Base!$C$2:$D$3,2,0),\"\")","v":""},null,null,null,null,null,null,null,null,null,null,null,null,null,null,null,"",null,null,0,0,0,0,0,0,0,0]
[null,{"$f":"IFERROR(VLOOKUP(A91,Base!$C$2:$D$3,2,0),\"\")","v":""},null,null,null,null,null,null,null,null,null,null,null,null,null,null,null,"",null,null,0,0,0,0,0,0,0,0]
[null,{"$f":"IFERROR(VLOOKUP(A92,Base!$C$2:$D$3,2,0),\"\")","v":""},null,null,null,null,null,null,null,null,null,null,null,null,null,null,null,"",null,null,0,0,0,0,0,0,0,0]
[null,{"$f":"IFERROR(VLOOKUP(A93,Base!$C$2:$D$3,2,0),\"\")","v":""},null,null,null,null,null,null,null,null,null,null,null,null,null,null,null,"",null,null,0,0,0,0,0,0,0,0]
[null,{"$f":"IFERROR(VLOOKUP(A94,Base!$C$2:$D$3,2,0),\"\")","v":""},null,null,null,null,null,null,null,null,null,null,null,null,null,null,null,"",null,null,0,0,0,0,0,0,0,0]
[null,{"$f":"IFERROR(VLOOKUP(A95,Base!$C$2:$D$3,2,0),\"\")","v":""},null,null,null,null,null,null,null,null,null,null,null,null,null,null,null,"",null,null,0,0,0,0,0,0,0,0]
[null,{"$f":"IFERROR(VLOOKUP(A96,Base!$C$2:$D$3,2,0),\"\")","v":""},null,null,null,null,null,null,null,null,null,null,null,null,null,null,null,"",null,null,0,0,0,0,0,0,0,0]
[null,{"$f":"IFERROR(VLOOKUP(A97,Base!$C$2:$D$3,2,0),\"\")","v":""},null,null,null,null,null,null,null,null,null,null,null,null,null,null,null,"",null,null,0,0,0,0,0,0,0,0]
[null,{"$f":"IFERROR(VLOOKUP(A98,Base!$C$2:$D$3,2,0),\"\")","v":""},null,null,null,null,null,null,null,null,null,null,null,null,null,null,null,"",null,null,0,0,0,0,0,0,0,0]
[null,{"$f":"IFERROR(VLOOKUP(A99,Base!$C$2:$D$3,2,0),\"\")","v":""},null,null,null,null,null,null,null,null,null,null,null,null,null,null,null,"",null,null,0,0,0,0,0,0,0,0]
[null,{"$f":"IFERROR(VLOOKUP(A100,Base!$C$2:$D$3,2,0),\"\")","v":""},null,null,null,null,null,null,null,null,null,null,null,null,null,null,null,"",null,null,0,0,0,0,0,0,0,0]
[null,{"$f":"IFERROR(VLOOKUP(A101,Base!$C$2:$D$3,2,0),\"\")","v":""},null,null,null,null,null,null,null,null,null,null,null,null,null,null,null,"",null,null,0,0,0,0,0,0,0,0]
[null,{"$f":"IFERROR(VLOOKUP(A102,Base!$C$2:$D$3,2,0),\"\")","v":""},null,null,null,null,null,null,null,null,null,null,null,null,null,null,null,"",null,null,0,0,0,0,0,0,0,0]
[null,{"$f":"IFERROR(VLOOKUP(A103,Base!$C$2:$D$3,2,0),\"\")","v":""},null,null,null,null,null,null,null,null,null,null,null,null,null,null,null,"",null,null,0,0,0,0,0,0,0,0]
[null,{"$f":"IFERROR(VLOOKUP(A104,Base!$C$2:$D$3,2,0),\"\")","v":""},null,null,null,null,null,null,null,null,null,null,null,null,null,null,null,"",null,null,0,0,0,0,0,0,0,0]
[null,{"$f":"IFERROR(VLOOKUP(A105,Base!$C$2:$D$3,2,0),\"\")","v":""},null,null,null,null,null,null,null,null,null,null,null,null,null,null,null,"",null,null,0,0,0,0,0,0,0,0]
[null,{"$f":"IFERROR(VLOOKUP(A106,Base!$C$2:$D$3,2,0),\"\")","v":""},null,null,null,null,null,null,null,null,null,null,null,null,null,null,null,"",null,null,0,0,0,0,0,0,0,0]
[null,{"$f":"IFERROR(VLOOKUP(A107,Base!$C$2:$D$3,2,0),\"\")","v":""},null,null,null,null,null,null,null,null,null,null,null,null,null,null,null,"",null,null,0,0,0,0,0,0,0,0]
[null,{"$f":"IFERROR(VLOOKUP(A108,Base!$C$2:$D$3,2,0),\"\")","v":""},null,null,null,null,null,null,null,null,null,null,null,null,null,null,null,"",null,null,0,0,0,0,0,0,0,0]
[null,{"$f":"IFERROR(VLOOKUP(A109,Base!$C$2:$D$3,2,0),\"\")","v":""},null,null,null,null,null,null,null,null,null,null,null,null,null,null,null,"",null,null,0,0,0,0,0,0,0,0]
[null,{"$f":"IFERROR(VLOOKUP(A110,Base!$C$2:$D$3,2,0),\"\")","v":""},null,null,null,null,null,null,null,null,null,null,null,null,null,null,null,"",null,null,0,0,0,0,0,0,0,0]
[null,{"$f":"IFERROR(VLOOKUP(A111,Base!$C$2:$D$3,2,0),\"\")","v":""},null,null,null,null,null,null,null,null,null,null,null,null,null,null,null,"",null,null,0,0,0,0,0,0,0,0]
[null,{"$f":"IFERROR(VLOOKUP(A112,Base!$C$2:$D$3,2,0),\"\")","v":""},null,null,null,null,null,null,null,null,null,null,null,null,null,null,null,"",null,null,0,0,0,0,0,0,0,0]
[null,{"$f":"IFERROR(VLOOKUP(A113,Base!$C$2:$D$3,2,0),\"\")","v":""},null,null,null,null,null,null,null,null,null,null,null,null,null,null,null,"",null,null,0,0,0,0,0,0,0,0]
[null,{"$f":"IFERROR(VLOOKUP(A114,Base!$C$2:$D$3,2,0),\"\")","v":""},null,null,null,null,null,null,null,null,null,null,null,null,null,null,null,"",null,null,0,0,0,0,0,0,0,0]
[null,{"$f":"IFERROR(VLOOKUP(A115,Base!$C$2:$D$3,2,0),\"\")","v":""},null,null,null,null,null,null,null,null,null,null,null,null,null,null,null,"",null,null,0,0,0,0,0,0,0,0]
[null,{"$f":"IFERROR(VLOOKUP(A116,Base!$C$2:$D$3,2,0),\"\")","v":""},null,null,null,null,null,null,null,null,null,null,null,null,null,null,null,"",null,null,0,0,0,0,0,0,0,0]
[null,{"$f":"IFERROR(VLOOKUP(A117,Base!$C$2:$D$3,2,0),\"\")","v":""},null,null,null,null,null,null,null,null,null,null,null,null,null,null,null,"",null,null,0,0,0,0,0,0,0,0]
[null,{"$f":"IFERROR(VLOOKUP(A118,Base!$C$2:$D$3,2,0),\"\")","v":""},null,null,null,null,null,null,null,null,null,null,null,null,null,null,null,"",null,null,0,0,0,0,0,0,0,0]
[null,{"$f":"IFERROR(VLOOKUP(A119,Base!$C$2:$D$3,2,0),\"\")","v":""},null,null,null,null,null,null,null,null,null,null,null,null,null,null,null,"",null,null,0,0,0,0,0,0,0,0]
[null,{"$f":"IFERROR(VLOOKUP(A120,Base!$C$2:$D$3,2,0),\"\")","v":""},null,null,null,null,null,null,null,null,null,null,null,null,null,null,null,"",null,null,0,0,0,0,0,0,0,0]
[null,{"$f":"IFERROR(VLOOKUP(A121,Base!$C$2:$D$3,2,0),\"\")","v":""},null,null,null,null,null,null,null,null,null,null,null,null,null,null,null,"",null,null,0,0,0,0,0,0,0,0]
[null,{"$f":"IFERROR(VLOOKUP(A122,Base!$C$2:$D$3,2,0),\"\")","v":""},null,null,null,null,null,null,null,null,null,null,null,null,null,null,null,"",null,null,0,0,0,0,0,0,0,0]
[null,{"$f":"IFERROR(VLOOKUP(A123,Base!$C$2:$D$3,2,0),\"\")","v":""},null,null,null,null,null,null,null,null,null,null,null,null,null,null,null,"",null,null,0,0,0,0,0,0,0,0]
[null,{"$f":"IFERROR(VLOOKUP(A124,Base!$C$2:$D$3,2,0),\"\")","v":""},null,null,null,null,null,null,null,null,null,null,null,null,null,null,null,"",null,null,0,0,0,0,0,0,0,0]
[null,{"$f":"IFERROR(VLOOKUP(A125,Base!$C$2:$D$3,2,0),\"\")","v":""},null,null,null,null,null,null,null,null,null,null,null,null,null,null,null,"",null,null,0,0,0,0,0,0,0,0]
[null,{"$f":"IFERROR(VLOOKUP(A126,Base!$C$2:$D$3,2,0),\"\")","v":""},null,null,null,null,null,null,null,null,null,null,null,null,null,null,null,"",null,null,0,0,0,0,0,0,0,0]
[null,{"$f":"IFERROR(VLOOKUP(A127,Base!$C$2:$D$3,2,0),\"\")","v":""},null,null,null,null,null,null,null,null,null,null,null,null,null,null,null,"",null,null,0,0,0,0,0,0,0,0]
[null,{"$f":"IFERROR(VLOOKUP(A128,Base!$C$2:$D$3,2,0),\"\")","v":""},null,null,null,null,null,null,null,null,null,null,null,null,null,null,null,"",null,null,0,0,0,0,0,0,0,0]
[null,{"$f":"IFERROR(VLOOKUP(A129,Base!$C$2:$D$3,2,0),\"\")","v":""},null,null,null,null,null,null,null,null,null,null,null,null,null,null,null,"",null,null,0,0,0,0,0,0,0,0]
[null,{"$f":"IFERROR(VLOOKUP(A130,Base!$C$2:$D$3,2,0),\"\")","v":""},null,null,null,null,null,null,null,null,null,null,null,null,null,null,null,"",null,null,0,0,0,0,0,0,0,0]
[null,{"$f":"IFERROR(VLOOKUP(A131,Base!$C$2:$D$3,2,0),\"\")","v":""},null,null,null,null,null,null,null,null,null,null,null,null,null,null,null,"",null,null,0,0,0,0,0,0,0,0]
[null,{"$f":"IFERROR(VLOOKUP(A132,Base!$C$2:$D$3,2,0),\"\")","v":""},null,null,null,null,null,null,null,null,null,null,null,null,null,null,null,"",null,null,0,0,0,0,0,0,0,0]
[null,{"$f":"IFERROR(VLOOKUP(A133,Base!$C$2:$D$3,2,0),\"\")","v":""},null,null,null,null,null,null,null,null,null,null,null,null,null,null,null,"",null,null,0,0,0,0,0,0,0,0]
[null,{"$f":"IFERROR(VLOOKUP(A134,Base!$C$2:$D$3,2,0),\"\")","v":""},null,null,null,null,null,null,null,null,null,null,null,null,null,null,null,{"$f":"IF(K134=\"\",\"\",IF(SUM(M134:P134)=K134,\"Suma motivo de Pago correcto\",\"Existe un error en la suma de Motivo de Pago\"))","v":""},null,null,0,0,0,0,0,0,0,0]
[null,{"$f":"IFERROR(VLOOKUP(A135,Base!$C$2:$D$3,2,0),\"\")","v":""},null,null,null,null,null,null,null,null,null,null,null,null,null,null,null,"",null,null,{"$f":"IF(LEN(K135)=0,0,F135-K135)","v":0},{"$f":"IF(LEN(K135)=0,F135,F135-K135)","v":0},{"$f":"IF(LEN(G135)=0,0,F135-G135)","v":0},{"$f":"IF(LEN(G135)=0,F135,F135-G135)","v":0},{"$f":"IF(AND(LEN(N135)=0,LEN(O135)=0,LEN(P135)=0),K135,K135-N135-O135-P135)","v":0},{"$f":"IF(AND(LEN(M135)=0,LEN(O135)=0,LEN(P135)=0),K135,K135-M135-O135-P135)","v":0},{"$f":"IF(AND(LEN(M135)=0,LEN(N135)=0,LEN(P135)=0),K135,K135-M135-N135-P135)","v":0},{"$f":"IF(AND(LEN(M135)=0,LEN(N135)=0,LEN(O135)=0),K135,K135-M135-N135-O135)","v":0}]
[null,{"$f":"IFERROR(VLOOKUP(A136,Base!$C$2:$D$3,2,0),\"\")","v":""},null,null,null,null,null,null,null,null,null,null,null,null,null,null,null,"",null,null,0,0,0,0,0,0,0,0]
[null,{"$f":"IFERROR(VLOOKUP(A137,Base!$C$2:$D$3,2,0),\"\")","v":""},null,null,null,null,null,null,null,null,null,null,null,null,null,null,null,"",null,null,0,0,0,0,0,0,0,0]
[null,{"$f":"IFERROR(VLOOKUP(A138,Base!$C$2:$D$3,2,0),\"\")","v":""},null,null,null,null,null,null,null,null,null,null,null,null,null,null,null,"",null,null,0,0,0,0,0,0,0,0]
[null,{"$f":"IFERROR(VLOOKUP(A139,Base!$C$2:$D$3,2,0),\"\")","v":""},null,null,null,null,null,null,null,null,null,null,null,null,null,null,null,"",null,null,0,0,0,0,0,0,0,0]
[null,{"$f":"IFERROR(VLOOKUP(A140,Base!$C$2:$D$3,2,0),\"\")","v":""},null,null,null,null,null,null,null,null,null,null,null,null,null,null,null,"",null,null,0,0,0,0,0,0,0,0]
[null,{"$f":"IFERROR(VLOOKUP(A141,Base!$C$2:$D$3,2,0),\"\")","v":""},null,null,null,null,null,null,null,null,null,null,null,null,null,null,null,"",null,null,0,0,0,0,0,0,0,0]
[null,{"$f":"IFERROR(VLOOKUP(A142,Base!$C$2:$D$3,2,0),\"\")","v":""},null,null,null,null,null,null,null,null,null,null,null,null,null,null,null,"",null,null,0,0,0,0,0,0,0,0]
[null,{"$f":"IFERROR(VLOOKUP(A143,Base!$C$2:$D$3,2,0),\"\")","v":""},null,null,null,null,null,null,null,null,null,null,null,null,null,null,null,"",null,null,0,0,0,0,0,0,0,0]
[null,{"$f":"IFERROR(VLOOKUP(A144,Base!$C$2:$D$3,2,0),\"\")","v":""},null,null,null,null,null,null,null,null,null,null,null,null,null,null,null,"",null,null,0,0,0,0,0,0,0,0]
[null,{"$f":"IFERROR(VLOOKUP(A145,Base!$C$2:$D$3,2,0),\"\")","v":""},null,null,null,null,null,null,null,null,null,null,null,null,null,null,null,"",null,null,0,0,0,0,0,0,0,0]
[null,{"$f":"IFERROR(VLOOKUP(A146,Base!$C$2:$D$3,2,0),\"\")","v":""},null,null,null,null,null,null,null,null,null,null,null,null,null,null,null,"",null,null,0,0,0,0,0,0,0,0]
[null,{"$f":"IFERROR(VLOOKUP(A147,Base!$C$2:$D$3,2,0),\"\")","v":""},null,null,null,null,null,null,null,null,null,null,null,null,null,null,null,"",null,null,0,0,0,0,0,0,0,0]
[null,{"$f":"IFERROR(VLOOKUP(A148,Base!$C$2:$D$3,2,0),\"\")","v":""},null,null,null,null,null,null,null,null,null,null,null,null,null,null,null,"",null,null,0,0,0,0,0,0,0,0]
[null,{"$f":"IFERROR(VLOOKUP(A149,Base!$C$2:$D$3,2,0),\"\")","v":""},null,null,null,null,null,null,null,null,null,null,null,null,null,null,null,"",null,null,0,0,0,0,0,0,0,0]
[null,{"$f":"IFERROR(VLOOKUP(A150,Base!$C$2:$D$3,2,0),\"\")","v":""},null,null,null,null,null,null,null,null,null,null,null,null,null,null,null,"",null,null,0,0,0,0,0,0,0,0]
[null,{"$f":"IFERROR(VLOOKUP(A151,Base!$C$2:$D$3,2,0),\"\")","v":""},null,null,null,null,null,null,null,null,null,null,null,null,null,null,null,"",null,null,0,0,0,0,0,0,0,0]
[null,{"$f":"IFERROR(VLOOKUP(A152,Base!$C$2:$D$3,2,0),\"\")","v":""},null,null,null,null,null,null,null,null,null,null,null,null,null,null,null,"",null,null,0,0,0,0,0,0,0,0]
[null,{"$f":"IFERROR(VLOOKUP(A153,Base!$C$2:$D$3,2,0),\"\")","v":""},null,null,null,null,null,null,null,null,null,null,null,null,null,null,null,"",null,null,0,0,0,0,0,0,0,0]
[null,{"$f":"IFERROR(VLOOKUP(A154,Base!$C$2:$D$3,2,0),\"\")","v":""},null,null,null,null,null,null,null,null,null,null,null,null,null,null,null,"",null,null,0,0,0,0,0,0,0,0]
[null,{"$f":"IFERROR(VLOOKUP(A155,Base!$C$2:$D$3,2,0),\"\")","v":""},null,null,null,null,null,null,null,null,null,null,null,null,null,null,null,"",null,null,0,0,0,0,0,0,0,0]
[null,{"$f":"IFERROR(VLOOKUP(A156,Base!$C$2:$D$3,2,0),\"\")","v":""},null,null,null,null,null,null,null,null,null,null,null,null,null,null,null,"",null,null,0,0,0,0,0,0,0,0]
[null,{"$f":"IFERROR(VLOOKUP(A157,Base!$C$2:$D$3,2,0),\"\")","v":""},null,null,null,null,null,null,null,null,null,null,null,null,null,null,null,"",null,null,0,0,0,0,0,0,0,0]
[null,{"$f":"IFERROR(VLOOKUP(A158,Base!$C$2:$D$3,2,0),\"\")","v":""},null,null,null,null,null,null,null,null,null,null,null,null,null,null,null,"",null,null,0,0,0,0,0,0,0,0]
[null,{"$f":"IFERROR(VLOOKUP(A159,Base!$C$2:$D$3,2,0),\"\")","v":""},null,null,null,null,null,null,null,null,null,null,null,null,null,null,null,"",null,null,0,0,0,0,0,0,0,0]
[null,{"$f":"IFERROR(VLOOKUP(A160,Base!$C$2:$D$3,2,0),\"\")","v":""},null,null,null,null,null,null,null,null,null,null,null,null,null,null,null,"",null,null,0,0,0,0,0,0,0,0]
[null,{"$f":"IFERROR(VLOOKUP(A161,Base!$C$2:$D$3,2,0),\"\")","v":""},null,null,null,null,null,null,null,null,null,null,null,null,null,null,null,"",null,null,0,0,0,0,0,0,0,0]
[null,{"$f":"IFERROR(VLOOKUP(A162,Base!$C$2:$D$3,2,0),\"\")","v":""},null,null,null,null,null,null,null,null,null,null,null,null,null,null,null,"",null,null,0,0,0,0,0,0,0,0]
[null,{"$f":"IFERROR(VLOOKUP(A163,Base!$C$2:$D$3,2,0),\"\")","v":""},null,null,null,null,null,null,null,null,null,null,null,null,null,null,null,"",null,null,0,0,0,0,0,0,0,0]
[null,{"$f":"IFERROR(VLOOKUP(A164,Base!$C$2:$D$3,2,0),\"\")","v":""},null,null,null,null,null,null,null,null,null,null,null,null,null,null,null,"",null,null,0,0,0,0,0,0,0,0]
[null,{"$f":"IFERROR(VLOOKUP(A165,Base!$C$2:$D$3,2,0),\"\")","v":""},null,null,null,null,null,null,null,null,null,null,null,null,null,null,null,"",null,null,0,0,0,0,0,0,0,0]
[null,{"$f":"IFERROR(VLOOKUP(A166,Base!$C$2:$D$3,2,0),\"\")","v":""},null,null,null,null,null,null,null,null,null,null,null,null,null,null,null,"",null,null,0,0,0,0,0,0,0,0]
[null,{"$f":"IFERROR(VLOOKUP(A167,Base!$C$2:$D$3,2,0),\"\")","v":""},null,null,null,null,null,null,null,null,null,null,null,null,null,null,null,"",null,null,0,0,0,0,0,0,0,0]
[null,{"$f":"IFERROR(VLOOKUP(A168,Base!$C$2:$D$3,2,0),\"\")","v":""},null,null,null,null,null,null,null,null,null,null,null,null,null,null,null,"",null,null,0,0,0,0,0,0,0,0]
[null,{"$f":"IFERROR(VLOOKUP(A169,Base!$C$2:$D$3,2,0),\"\")","v":""},null,null,null,null,null,null,null,null,null,null,null,null,null,null,null,"",null,null,0,0,0,0,0,0,0,0]
[null,{"$f":"IFERROR(VLOOKUP(A170,Base!$C$2:$D$3,2,0),\"\")","v":""},null,null,null,null,null,null,null,null,null,null,null,null,null,null,null,"",null,null,0,0,0,0,0,0,0,0]
[null,{"$f":"IFERROR(VLOOKUP(A171,Base!$C$2:$D$3,2,0),\"\")","v":""},null,null,null,null,null,null,null,null,null,null,null,null,null,null,null,"",null,null,0,0,0,0,0,0,0,0]
[null,{"$f":"IFERROR(VLOOKUP(A172,Base!$C$2:$D$3,2,0),\"\")","v":""},null,null,null,null,null,null,null,null,null,null,null,null,null,null,null,"",null,null,0,0,0,0,0,0,0,0]
[null,{"$f":"IFERROR(VLOOKUP(A173,Base!$C$2:$D$3,2,0),\"\")","v":""},null,null,null,null,null,null,null,null,null,null,null,null,null,null,null,"",null,null,0,0,0,0,0,0,0,0]
[null,{"$f":"IFERROR(VLOOKUP(A174,Base!$C$2:$D$3,2,0),\"\")","v":""},null,null,null,null,null,null,null,null,null,null,null,null,null,null,null,"",null,null,0,0,0,0,0,0,0,0]
[null,{"$f":"IFERROR(VLOOKUP(A175,Base!$C$2:$D$3,2,0),\"\")","v":""},null,null,null,null,null,null,null,null,null,null,null,null,null,null,null,"",null,null,0,0,0,0,0,0,0,0]
[null,{"$f":"IFERROR(VLOOKUP(A176,Base!$C$2:$D$3,2,0),\"\")","v":""},null,null,null,null,null,null,null,null,null,null,null,null,null,null,null,"",null,null,0,0,0,0,0,0,0,0]
[null,{"$f":"IFERROR(VLOOKUP(A177,Base!$C$2:$D$3,2,0),\"\")","v":""},null,null,null,null,null,null,null,null,null,null,null,null,null,null,null,"",null,null,0,0,0,0,0,0,0,0]
[null,{"$f":"IFERROR(VLOOKUP(A178,Base!$C$2:$D$3,2,0),\"\")","v":""},null,null,null,null,null,null,null,null,null,null,null,null,null,null,null,"",null,null,0,0,0,0,0,0,0,0]
[null,{"$f":"IFERROR(VLOOKUP(A179,Base!$C$2:$D$3,2,0),\"\")","v":""},null,null,null,null,null,null,null,null,null,null,null,null,null,null,null,"",null,null,0,0,0,0,0,0,0,0]
[null,{"$f":"IFERROR(VLOOKUP(A180,Base!$C$2:$D$3,2,0),\"\")","v":""},null,null,null,null,null,null,null,null,null,null,null,null,null,null,null,"",null,null,0,0,0,0,0,0,0,0]
[null,{"$f":"IFERROR(VLOOKUP(A181,Base!$C$2:$D$3,2,0),\"\")","v":""},null,null,null,null,null,null,null,null,null,null,null,null,null,null,null,"",null,null,0,0,0,0,0,0,0,0]
[null,{"$f":"IFERROR(VLOOKUP(A182,Base!$C$2:$D$3,2,0),\"\")","v":""},null,null,null,null,null,null,null,null,null,null,null,null,null,null,null,"",null,null,0,0,0,0,0,0,0,0]
[null,{"$f":"IFERROR(VLOOKUP(A183,Base!$C$2:$D$3,2,0),\"\")","v":""},null,null,null,null,null,null,null,null,null,null,null,null,null,null,null,"",null,null,0,0,0,0,0,0,0,0]
[null,{"$f":"IFERROR(VLOOKUP(A184,Base!$C$2:$D$3,2,0),\"\")","v":""},null,null,null,null,null,null,null,null,null,null,null,null,null,null,null,"",null,null,0,0,0,0,0,0,0,0]
[null,{"$f":"IFERROR(VLOOKUP(A185,Base!$C$2:$D$3,2,0),\"\")","v":""},null,null,null,null,null,null,null,null,null,null,null,null,null,null,null,"",null,null,0,0,0,0,0,0,0,0]
[null,{"$f":"IFERROR(VLOOKUP(A186,Base!$C$2:$D$3,2,0),\"\")","v":""},null,null,null,null,null,null,null,null,null,null,null,null,null,null,null,"",null,null,0,0,0,0,0,0,0,0]
[null,{"$f":"IFERROR(VLOOKUP(A187,Base!$C$2:$D$3,2,0),\"\")","v":""},null,null,null,null,null,null,null,null,null,null,null,null,null,null,null,"",null,null,0,0,0,0,0,0,0,0]
[null,{"$f":"IFERROR(VLOOKUP(A188,Base!$C$2:$D$3,2,0),\"\")","v":""},null,null,null,null,null,null,null,null,null,null,null,null,null,null,null,"",null,null,0,0,0,0,0,0,0,0]
[null,{"$f":"IFERROR(VLOOKUP(A189,Base!$C$2:$D$3,2,0),\"\")","v":""},null,null,null,null,null,null,null,null,null,null,null,null,null,null,null,"",null,null,0,0,0,0,0,0,0,0]
[null,{"$f":"IFERROR(VLOOKUP(A190,Base!$C$2:$D$3,2,0),\"\")","v":""},null,null,null,null,null,null,null,null,null,null,null,null,null,null,null,"",null,null,0,0,0,0,0,0,0,0]
[null,{"$f":"IFERROR(VLOOKUP(A191,Base!$C$2:$D$3,2,0),\"\")","v":""},null,null,null,null,null,null,null,null,null,null,null,null,null,null,null,"",null,null,0,0,0,0,0,0,0,0]
[null,{"$f":"IFERROR(VLOOKUP(A192,Base!$C$2:$D$3,2,0),\"\")","v":""},null,null,null,null,null,null,null,null,null,null,null,null,null,null,null,"",null,null,0,0,0,0,0,0,0,0]
[null,{"$f":"IFERROR(VLOOKUP(A193,Base!$C$2:$D$3,2,0),\"\")","v":""},null,null,null,null,null,null,null,null,null,null,null,null,null,null,null,"",null,null,0,0,0,0,0,0,0,0]
[null,{"$f":"IFERROR(VLOOKUP(A194,Base!$C$2:$D$3,2,0),\"\")","v":""},null,null,null,null,null,null,null,null,null,null,null,null,null,null,null,"",null,null,0,0,0,0,0,0,0,0]
[null,{"$f":"IFERROR(VLOOKUP(A195,Base!$C$2:$D$3,2,0),\"\")","v":""},null,null,null,null,null,null,null,null,null,null,null,null,null,null,null,"",null,null,0,0,0,0,0,0,0,0]
[null,{"$f":"IFERROR(VLOOKUP(A196,Base!$C$2:$D$3,2,0),\"\")","v":""},null,null,null,null,null,null,null,null,null,null,null,null,null,null,null,"",null,null,0,0,0,0,0,0,0,0]
[null,{"$f":"IFERROR(VLOOKUP(A197,Base!$C$2:$D$3,2,0),\"\")","v":""},null,null,null,null,null,null,null,null,null,null,null,null,null,null,null,"",null,null,0,0,0,0,0,0,0,0]
[null,{"$f":"IFERROR(VLOOKUP(A198,Base!$C$2:$D$3,2,0),\"\")","v":""},null,null,null,null,null,null,null,null,null,null,null,null,null,null,null,{"$f":"IF(K198=\"\",\"\",IF(SUM(M198:P198)=K198,\"Suma motivo de Pago correcto\",\"Existe un error en la suma de Motivo de Pago\"))","v":""},null,null,0,0,0,0,0,0,0,0]
[null,{"$f":"IFERROR(VLOOKUP(A199,Base!$C$2:$D$3,2,0),\"\")","v":""},null,null,null,null,null,null,null,null,null,null,null,null,null,null,null,"",null,null,{"$f":"IF(LEN(K199)=0,0,F199-K199)","v":0},{"$f":"IF(LEN(K199)=0,F199,F199-K199)","v":0},{"$f":"IF(LEN(G199)=0,0,F199-G199)","v":0},{"$f":"IF(LEN(G199)=0,F199,F199-G199)","v":0},{"$f":"IF(AND(LEN(N199)=0,LEN(O199)=0,LEN(P199)=0),K199,K199-N199-O199-P199)","v":0},{"$f":"IF(AND(LEN(M199)=0,LEN(O199)=0,LEN(P199)=0),K199,K199-M199-O199-P199)","v":0},{"$f":"IF(AND(LEN(M199)=0,LEN(N199)=0,LEN(P199)=0),K199,K199-M199-N199-P199)","v":0},{"$f":"IF(AND(LEN(M199)=0,LEN(N199)=0,LEN(O199)=0),K199,K199-M199-N199-O199)","v":0}]
[null,{"$f":"IFERROR(VLOOKUP(A200,Base!$C$2:$D$3,2,0),\"\")","v":""},null,null,null,null,null,null,null,null,null,null,null,null,null,null,null,"",null,null,0,0,0,0,0,0,0,0]
[null,{"$f":"IFERROR(VLOOKUP(A201,Base!$C$2:$D$3,2,0),\"\")","v":""},null,null,null,null,null,null,null,null,null,null,null,null,null,null,null,"",null,null,0,0,0,0,0,0,0,0]
[null,{"$f":"IFERROR(VLOOKUP(A202,Base!$C$2:$D$3,2,0),\"\")","v":""},null,null,null,null,null,null,null,null,null,null,null,null,null,null,null,"",null,null,0,0,0,0,0,0,0,0]
[null,{"$f":"IFERROR(VLOOKUP(A203,Base!$C$2:$D$3,2,0),\"\")","v":""},null,null,null,null,null,null,null,null,null,null,null,null,null,null,null,"",null,null,0,0,0,0,0,0,0,0]
[null,{"$f":"IFERROR(VLOOKUP(A204,Base!$C$2:$D$3,2,0),\"\")","v":""},null,null,null,null,null,null,null,null,null,null,null,null,null,null,null,"",null,null,0,0,0,0,0,0,0,0]
[null,{"$f":"IFERROR(VLOOKUP(A205,Base!$C$2:$D$3,2,0),\"\")","v":""},null,null,null,null,null,null,null,null,null,null,null,null,null,null,null,"",null,null,0,0,0,0,0,0,0,0]
[null,{"$f":"IFERROR(VLOOKUP(A206,Base!$C$2:$D$3,2,0),\"\")","v":""},null,null,null,null,null,null,null,null,null,null,null,null,null,null,null,"",null,null,0,0,0,0,0,0,0,0]
[null,{"$f":"IFERROR(VLOOKUP(A207,Base!$C$2:$D$3,2,0),\"\")","v":""},null,null,null,null,null,null,null,null,null,null,null,null,null,null,null,"",null,null,0,0,0,0,0,0,0,0]
[null,{"$f":"IFERROR(VLOOKUP(A208,Base!$C$2:$D$3,2,0),\"\")","v":""},null,null,null,null,null,null,null,null,null,null,null,null,null,null,null,"",null,null,0,0,0,0,0,0,0,0]
[null,{"$f":"IFERROR(VLOOKUP(A209,Base!$C$2:$D$3,2,0),\"\")","v":""},null,null,null,null,null,null,null,null,null,null,null,null,null,null,null,"",null,null,0,0,0,0,0,0,0,0]
[null,{"$f":"IFERROR(VLOOKUP(A210,Base!$C$2:$D$3,2,0),\"\")","v":""},null,null,null,null,null,null,null,null,null,null,null,null,null,null,null,"",null,null,0,0,0,0,0,0,0,0]
[null,{"$f":"IFERROR(VLOOKUP(A211,Base!$C$2:$D$3,2,0),\"\")","v":""},null,null,null,null,null,null,null,null,null,null,null,null,null,null,null,"",null,null,0,0,0,0,0,0,0,0]
[null,{"$f":"IFERROR(VLOOKUP(A212,Base!$C$2:$D$3,2,0),\"\")","v":""},null,null,null,null,null,null,null,null,null,null,null,null,null,null,null,"",null,null,0,0,0,0,0,0,0,0]
[null,{"$f":"IFERROR(VLOOKUP(A213,Base!$C$2:$D$3,2,0),\"\")","v":""},null,null,null,null,null,null,null,null,null,null,null,null,null,null,null,"",null,null,0,0,0,0,0,0,0,0]
[null,{"$f":"IFERROR(VLOOKUP(A214,Base!$C$2:$D$3,2,0),\"\")","v":""},null,null,null,null,null,null,null,null,null,null,null,null,null,null,null,"",null,null,0,0,0,0,0,0,0,0]
[null,{"$f":"IFERROR(VLOOKUP(A215,Base!$C$2:$D$3,2,0),\"\")","v":""},null,null,null,null,null,null,null,null,null,null,null,null,null,null,null,"",null,null,0,0,0,0,0,0,0,0]
[null,{"$f":"IFERROR(VLOOKUP(A216,Base!$C$2:$D$3,2,0),\"\")","v":""},null,null,null,null,null,null,null,null,null,null,null,null,null,null,null,"",null,null,0,0,0,0,0,0,0,0]
[null,{"$f":"IFERROR(VLOOKUP(A217,Base!$C$2:$D$3,2,0),\"\")","v":""},null,null,null,null,null,null,null,null,null,null,null,null,null,null,null,"",null,null,0,0,0,0,0,0,0,0]
[null,{"$f":"IFERROR(VLOOKUP(A218,Base!$C$2:$D$3,2,0),\"\")","v":""},null,null,null,null,null,null,null,null,null,null,null,null,null,null,null,"",null,null,0,0,0,0,0,0,0,0]
[null,{"$f":"IFERROR(VLOOKUP(A219,Base!$C$2:$D$3,2,0),\"\")","v":""},null,null,null,null,null,null,null,null,null,null,null,null,null,null,null,"",null,null,0,0,0,0,0,0,0,0]
[null,{"$f":"IFERROR(VLOOKUP(A220,Base!$C$2:$D$3,2,0),\"\")","v":""},null,null,null,null,null,null,null,null,null,null,null,null,null,null,null,"",null,null,0,0,0,0,0,0,0,0]
[null,{"$f":"IFERROR(VLOOKUP(A221,Base!$C$2:$D$3,2,0),\"\")","v":""},null,null,null,null,null,null,null,null,null,null,null,null,null,null,null,"",null,null,0,0,0,0,0,0,0,0]
[null,{"$f":"IFERROR(VLOOKUP(A222,Base!$C$2:$D$3,2,0),\"\")","v":""},null,null,null,null,null,null,null,null,null,null,null,null,null,null,null,"",null,null,0,0,0,0,0,0,0,0]
[null,{"$f":"IFERROR(VLOOKUP(A223,Base!$C$2:$D$3,2,0),\"\")","v":""},null,null,null,null,null,null,null,null,null,null,null,null,null,null,null,"",null,null,0,0,0,0,0,0,0,0]
[null,{"$f":"IFERROR(VLOOKUP(A224,Base!$C$2:$D$3,2,0),\"\")","v":""},null,null,null,null,null,null,null,null,null,null,null,null,null,null,null,"",null,null,0,0,0,0,0,0,0,0]
[null,{"$f":"IFERROR(VLOOKUP(A225,Base!$C$2:$D$3,2,0),\"\")","v":""},null,null,null,null,null,null,null,null,null,null,null,null,null,null,null,"",null,null,0,0,0,0,0,0,0,0]
[null,{"$f":"IFERROR(VLOOKUP(A226,Base!$C$2:$D$3,2,0),\"\")","v":""},null,null,null,null,null,null,null,null,null,null,null,null,null,null,null,"",null,null,0,0,0,0,0,0,0,0]
[null,{"$f":"IFERROR(VLOOKUP(A227,Base!$C$2:$D$3,2,0),\"\")","v":""},null,null,null,null,null,null,null,null,null,null,null,null,null,null,null,"",null,null,0,0,0,0,0,0,0,0]
[null,{"$f":"IFERROR(VLOOKUP(A228,Base!$C$2:$D$3,2,0),\"\")","v":""},null,null,null,null,null,null,null,null,null,null,null,null,null,null,null,"",null,null,0,0,0,0,0,0,0,0]
[null,{"$f":"IFERROR(VLOOKUP(A229,Base!$C$2:$D$3,2,0),\"\")","v":""},null,null,null,null,null,null,null,null,null,null,null,null,null,null,null,"",null,null,0,0,0,0,0,0,0,0]
[null,{"$f":"IFERROR(VLOOKUP(A230,Base!$C$2:$D$3,2,0),\"\")","v":""},null,null,null,null,null,null,null,null,null,null,null,null,null,null,null,"",null,null,0,0,0,0,0,0,0,0]
[null,{"$f":"IFERROR(VLOOKUP(A231,Base!$C$2:$D$3,2,0),\"\")","v":""},null,null,null,null,null,null,null,null,null,null,null,null,null,null,null,"",null,null,0,0,0,0,0,0,0,0]
[null,{"$f":"IFERROR(VLOOKUP(A232,Base!$C$2:$D$3,2,0),\"\")","v":""},null,null,null,null,null,null,null,null,null,null,null,null,null,null,null,"",null,null,0,0,0,0,0,0,0,0]
[null,{"$f":"IFERROR(VLOOKUP(A233,Base!$C$2:$D$3,2,0),\"\")","v":""},null,null,null,null,null,null,null,null,null,null,null,null,null,null,null,"",null,null,0,0,0,0,0,0,0,0]
[null,{"$f":"IFERROR(VLOOKUP(A234,Base!$C$2:$D$3,2,0),\"\")","v":""},null,null,null,null,null,null,null,null,null,null,null,null,null,null,null,"",null,null,0,0,0,0,0,0,0,0]
[null,{"$f":"IFERROR(VLOOKUP(A235,Base!$C$2:$D$3,2,0),\"\")","v":""},null,null,null,null,null,null,null,null,null,null,null,null,null,null,null,"",null,null,0,0,0,0,0,0,0,0]
[null,{"$f":"IFERROR(VLOOKUP(A236,Base!$C$2:$D$3,2,0),\"\")","v":""},null,null,null,null,null,null,null,null,null,null,null,null,null,null,null,"",null,null,0,0,0,0,0,0,0,0]
[null,{"$f":"IFERROR(VLOOKUP(A237,Base!$C$2:$D$3,2,0),\"\")","v":""},null,null,null,null,null,null,null,null,null,null,null,null,null,null,null,"",null,null,0,0,0,0,0,0,0,0]
[null,{"$f":"IFERROR(VLOOKUP(A238,Base!$C$2:$D$3,2,0),\"\")","v":""},null,null,null,null,null,null,null,null,null,null,null,null,null,null,null,"",null,null,0,0,0,0,0,0,0,0]
[null,{"$f":"IFERROR(VLOOKUP(A239,Base!$C$2:$D$3,2,0),\"\")","v":""},null,null,null,null,null,null,null,null,null,null,null,null,null,null,null,"",null,null,0,0,0,0,0,0,0,0]
[null,{"$f":"IFERROR(VLOOKUP(A240,Base!$C$2:$D$3,2,0),\"\")","v":""},null,null,null,null,null,null,null,null,null,null,null,null,null,null,null,"",null,null,0,0,0,0,0,0,0,0]
[null,{"$f":"IFERROR(VLOOKUP(A241,Base!$C$2:$D$3,2,0),\"\")","v":""},null,null,null,null,null,null,null,null,null,null,null,null,null,null,null,"",null,null,0,0,0,0,0,0,0,0]
[null,{"$f":"IFERROR(VLOOKUP(A242,Base!$C$2:$D$3,2,0),\"\")","v":""},null,null,null,null,null,null,null,null,null,null,null,null,null,null,null,"",null,null,0,0,0,0,0,0,0,0]
[null,{"$f":"IFERROR(VLOOKUP(A243,Base!$C$2:$D$3,2,0),\"\")","v":""},null,null,null,null,null,null,null,null,null,null,null,null,null,null,null,"",null,null,0,0,0,0,0,0,0,0]
[null,{"$f":"IFERROR(VLOOKUP(A244,Base!$C$2:$D$3,2,0),\"\")","v":""},null,null,null,null,null,null,null,null,null,null,null,null,null,null,null,"",null,null,0,0,0,0,0,0,0,0]
[null,{"$f":"IFERROR(VLOOKUP(A245,Base!$C$2:$D$3,2,0),\"\")","v":""},null,null,null,null,null,null,null,null,null,null,null,null,null,null,null,"",null,null,0,0,0,0,0,0,0,0]
[null,{"$f":"IFERROR(VLOOKUP(A246,Base!$C$2:$D$3,2,0),\"\")","v":""},null,null,null,null,null,null,null,null,null,null,null,null,null,null,null,"",null,null,0,0,0,0,0,0,0,0]
[null,{"$f":"IFERROR(VLOOKUP(A247,Base!$C$2:$D$3,2,0),\"\")","v":""},null,null,null,null,null,null,null,null,null,null,null,null,null,null,null,"",null,null,0,0,0,0,0,0,0,0]
[null,{"$f":"IFERROR(VLOOKUP(A248,Base!$C$2:$D$3,2,0),\"\")","v":""},null,null,null,null,null,null,null,null,null,null,null,null,null,null,null,"",null,null,0,0,0,0,0,0,0,0]
[null,{"$f":"IFERROR(VLOOKUP(A249,Base!$C$2:$D$3,2,0),\"\")","v":""},null,null,null,null,null,null,null,null,null,null,null,null,null,null,null,"",null,null,0,0,0,0,0,0,0,0]
[null,{"$f":"IFERROR(VLOOKUP(A250,Base!$C$2:$D$3,2,0),\"\")","v":""},null,null,null,null,null,null,null,null,null,null,null,null,null,null,null,"",null,null,0,0,0,0,0,0,0,0]

{"sheet":"Asignados Periodos Anteriores","index":2,"n_rows":250,"n_cols":28,"rows_kept":250,"cut":false,"hidden":false,"merged":[[0,0,1,10],[3,0,3,13],[5,12,5,15],[6,0,6,1]]}
["Siniestros Asignados Periodos Anteriores"]
[]
[]
[]
[]
[null,null,null,null,null,null,null,null,null,null,null,null,"Motivo de no Pago"]
["Grupo",null,"Compañía","Ramo","N° de Siniestros Asignados","N° de Siniestros Liquidados","Con Recomendación de pago","Plazo Promedio con Pago","Monto Promedio","Monto Efectivo de Pago","Sin Recomendación de pago","Plazo Promedio sin Pago","1.- Sin Cobertura","2.- Bajo deducible","3.- Incumplimiento de contrato por parte del asegurado","4.- Otros","Detalle Otros","Validador",null,null,"MinG","MaxG","MinI","MaxI","MaxL","MaxM","MaxN","ValorK"]
[null,{"$f":"IFERROR(VLOOKUP(A8,Base!$C$2:$D$3,2,0),\"\")","v":""},null,null,null,null,null,null,null,null,null,null,null,null,null,null,null,{"$f":"IF(K8=\"\",\"\",IF(SUM(M8:P8)=K8,\"Suma motivo de Pago correcto\",\"Existe un error en la suma de Motivo de Pago\"))","v":""},null,null,{"$f":"IF(LEN(K8)=0,0,F8-K8)","v":0},{"$f":"IF(LEN(K8)=0,F8,F8-K8)","v":0},{"$f":"IF(LEN(G8)=0,0,F8-G8)","v":0},{"$f":"IF(LEN(G8)=0,F8,F8-G8)","v":0},{"$f":"IF(AND(LEN(N8)=0,LEN(O8)=0,LEN(P8)=0),K8,K8-N8-O8-P8)","v":0},{"$f":"IF(AND(LEN(M8)=0,LEN(O8)=0,LEN(P8)=0),K8,K8-M8-O8-P8)","v":0},{"$f":"IF(AND(LEN(M8)=0,LEN(N8)=0,LEN(P8)=0),K8,K8-M8-N8-P8)","v":0},{"$f":"IF(AND(LEN(M8)=0,LEN(N8)=0,LEN(O8)=0),K8,K8-M8-N8-O8)","v":0}]
[null,{"$f":"IFERROR(VLOOKUP(A9,Base!$C$2:$D$3,2,0),\"\")","v":""},null,null,null,null,null,null,null,null,null,null,null,null,null,null,null,{"$f":"IF(K9=\"\",\"\",IF(SUM(M9:P9)=K9,\"Suma motivo de Pago correcto\",\"Existe un error en la suma de Motivo de Pago\"))","v":""},null,null,0,0,0,0,0,{"$f":"IF(AND(LEN(M9)=0,LEN(O9)=0,LEN(P9)=0),K9,K9-M9-O9-P9)","v":0},{"$f":"IF(AND(LEN(M9)=0,LEN(N9)=0,LEN(P9)=0),K9,K9-M9-N9-P9)","v":0},{"$f":"IF(AND(LEN(M9)=0,LEN(N9)=0,LEN(O9)=0),K9,K9-M9-N9-O9)","v":0}]
[null,{"$f":"IFERROR(VLOOKUP(A10,Base!$C$2:$D$3,2,0),\"\")","v":""},null,null,null,null,null,null,null,null,null,null,null,null,null,null,null,"",null,null,0,0,0,0,0,0,0,0]
[null,{"$f":"IFERROR(VLOOKUP(A11,Base!$C$2:$D$3,2,0),\"\")","v":""},null,null,null,null,null,null,null,null,null,null,null,null,null,null,null,"",null,null,0,0,0,0,0,0,0,0]
[null,{"$f":"IFERROR(VLOOKUP(A12,Base!$C$2:$D$3,2,0),\"\")","v":""},null,null,null,null,null,null,null,null,null,null,null,null,null,null,null,"",null,null,0,0,0,0,0,0,0,0]
[null,{"$f":"IFERROR(VLOOKUP(A13,Base!$C$2:$D$3,2,0),\"\")","v":""},null,null,null,null,null,null,null,null,null,null,null,null,null,null,null,"",null,null,0,0,0,0,0,0,0,0]
[null,{"$f":"IFERROR(VLOOKUP(A14,Base!$C$2:$D$3,2,0),\"\")","v":""},null,null,null,null,null,null,null,null,null,null,null,null,null,null,null,"",null,null,0,0,0,0,0,0,0,0]
[null,{"$f":"IFERROR(VLOOKUP(A15,Base!$C$2:$D$3,2,0),\"\")","v":""},null,null,null,null,null,null,null,null,null,null,null,null,null,null,null,"",null,null,0,0,0,0,0,0,0,0]
[null,{"$f":"IFERROR(VLOOKUP(A16,Base!$C$2:$D$3,2,0),\"\")","v":""},null,null,null,null,null,null,null,null,null,null,null,null,null,null,null,"",null,null,0,0,0,0,0,0,0,0]
[null,{"$f":"IFERROR(VLOOKUP(A17,Base!$C$2:$D$3,2,0),\"\")","v":""},null,null,null,null,null,null,null,null,null,null,null,null,null,null,null,"",null,null,0,0,0,0,0,0,0,0]
[null,{"$f":"IFERROR(VLOOKUP(A18,Base!$C$2:$D$3,2,0),\"\")","v":""},null,null,null,null,null,null,null,null,null,null,null,null,null,null,null,"",null,null,0,0,0,0,0,0,0,0]
[null,{"$f":"IFERROR(VLOOKUP(A19,Base!$C$2:$D$3,2,0),\"\")","v":""},null,null,null,null,null,null,null,null,null,null,null,null,null,null,null,"",null,null,0,0,0,0,0,0,0,0]
[null,{"$f":"IFERROR(VLOOKUP(A20,Base!$C$2:$D$3,2,0),\"\")","v":""},null,null,null,null,null,null,null,null,null,null,null,null,null,null,null,"",null,null,0,0,0,0,0,0,0,0]
[null,{"$f":"IFERROR(VLOOKUP(A21,Base!$C$2:$D$3,2,0),\"\")","v":""},null,null,null,null,null,null,null,null,null,null,null,null,null,null,null,"",null,null,0,0,0,0,0,0,0,0]
[null,{"$f":"IFERROR(VLOOKUP(A22,Base!$C$2:$D$3,2,0),\"\")","v":""},null,null,null,null,null,null,null,null,null,null,null,null,null,null,null,"",null,null,0,0,0,0,0,0,0,0]
[null,{"$f":"IFERROR(VLOOKUP(A23,Base!$C$2:$D$3,2,0),\"\")","v":""},null,null,null,null,null,null,null,null,null,null,null,null,null,null,null,"",null,null,0,0,0,0,0,0,0,0]
[null,{"$f":"IFERROR(VLOOKUP(A24,Base!$C$2:$D$3,2,0),\"\")","v":""},null,null,null,null,null,null,null,null,null,null,null,null,null,null,null,"",null,null,0,0,0,0,0,0,0,0]
[null,{"$f":"IFERROR(VLOOKUP(A25,Base!$C$2:$D$3,2,0),\"\")","v":""},null,null,null,null,null,null,null,null,null,null,null,null,null,null,null,"",null,null,0,0,0,0,0,0,0,0]
[null,{"$f":"IFERROR(VLOOKUP(A26,Base!$C$2:$D$3,2,0),\"\")","v":""},null,null,null,null,null,null,null,null,null,null,null,null,null,null,null,"",null,null,0,0,0,0,0,0,0,0]
[null,{"$f":"IFERROR(VLOOKUP(A27,Base!$C$2:$D$3,2,0),\"\")","v":""},null,null,null,null,null,null,null,null,null,null,null,null,null,null,null,"",null,null,0,0,0,0,0,0,0,0]
[null,{"$f":"IFERROR(VLOOKUP(A28,Base!$C$2:$D$3,2,0),\"\")","v":""},null,null,null,null,null,null,null,null,null,null,null,null,null,null,null,"",null,null,0,0,0,0,0,0,0,0]
[null,{"$f":"IFERROR(VLOOKUP(A29,Base!$C$2:$D$3,2,0),\"\")","v":""},null,null,null,null,null,null,null,null,null,null,null,null,null,null,null,"",null,null,0,0,0,0,0,0,0,0]
[null,{"$f":"IFERROR(VLOOKUP(A30,Base!$C$2:$D$3,2,0),\"\")","v":""},null,null,null,null,null,null,null,null,null,null,null,null,null,null,null,"",null,null,0,0,0,0,0,0,0,0]
[null,{"$f":"IFERROR(VLOOKUP(A31,Base!$C$2:$D$3,2,0),\"\")","v":""},null,null,null,null,null,null,null,null,null,null,null,null,null,null,null,"",null,null,0,0,0,0,0,0,0,0]
[null,{"$f":"IFERROR(VLOOKUP(A32,Base!$C$2:$D$3,2,0),\"\")","v":""},null,null,null,null,null,null,null,null,null,null,null,null,null,null,null,"",null,null,0,0,0,0,0,0,0,0]
[null,{"$f":"IFERROR(VLOOKUP(A33,Base!$C$2:$D$3,2,0),\"\")","v":""},null,null,null,null,null,null,null,null,null,null,null,null,null,null,null,"",null,null,0,0,0,0,0,0,0,0]
[null,{"$f":"IFERROR(VLOOKUP(A34,Base!$C$2:$D$3,2,0),\"\")","v":""},null,null,null,null,null,null,null,null,null,null,null,null,null,null,null,"",null,null,0,0,0,0,0,0,0,0]
[null,{"$f":"IFERROR(VLOOKUP(A35,Base!$C$2:$D$3,2,0),\"\")","v":""},null,null,null,null,null,null,null,null,null,null,null,null,null,null,null,"",null,null,0,0,0,0,0,0,0,0]
[null,{"$f":"IFERROR(VLOOKUP(A36,Base!$C$2:$D$3,2,0),\"\")","v":""},null,null,null,null,null,null,null,null,null,null,null,null,null,null,null,"",null,null,0,0,0,0,0,0,0,0]
[null,{"$f":"IFERROR(VLOOKUP(A37,Base!$C$2:$D$3,2,0),\"\")","v":""},null,null,null,null,null,null,null,null,null,null,null,null,null,null,null,"",null,null,0,0,0,0,0,0,0,0]
[null,{"$f":"IFERROR(VLOOKUP(A38,Base!$C$2:$D$3,2,0),\"\")","v":""},null,null,null,null,null,null,null,null,null,null,null,null,null,null,null,"",null,null,0,0,0,0,0,0,0,0]
[null,{"$f":"IFERROR(VLOOKUP(A39,Base!$C$2:$D$3,2,0),\"\")","v":""},null,null,null,null,null,null,null,null,null,null,null,null,null,null,null,"",null,null,0,0,0,0,0,0,0,0]
[null,{"$f":"IFERROR(VLOOKUP(A40,Base!$C$2:$D$3,2,0),\"\")","v":""},null,null,null,null,null,null,null,null,null,null,null,null,null,null,null,"",null,null,{"$f":"IF(LEN(K40)=0,0,F40-K40)","v":0},{"$f":"IF(LEN(K40)=0,F40,F40-K40)","v":0},{"$f":"IF(LEN(G40)=0,0,F40-G40)","v":0},{"$f":"IF(LEN(G40)=0,F40,F40-G40)","v":0},{"$f":"IF(AND(LEN(N40)=0,LEN(O40)=0,LEN(P40)=0),K40,K40-N40-O40-P40)","v":0},0,0,0]
[null,{"$f":"IFERROR(VLOOKUP(A41,Base!$C$2:$D$3,2,0),\"\")","v":""},null,null,null,null,null,null,null,null,null,null,null,null,null,null,null,"",null,null,0,0,0,0,0,0,0,0]
[null,{"$f":"IFERROR(VLOOKUP(A42,Base!$C$2:$D$3,2,0),\"\")","v":""},null,null,null,null,null,null,null,null,null,null,null,null,null,null,null,"",null,null,0,0,0,0,0,0,0,0]
[null,{"$f":"IFERROR(VLOOKUP(A43,Base!$C$2:$D$3,2,0),\"\")","v":""},null,null,null,null,null,null,null,null,null,null,null,null,null,null,null,"",null,null,0,0,0,0,0,0,0,0]
[null,{"$f":"IFERROR(VLOOKUP(A44,Base!$C$2:$D$3,2,0),\"\")","v":""},null,null,null,null,null,null,null,null,null,null,null,null,null,null,null,"",null,null,0,0,0,0,0,0,0,0]
[null,{"$f":"IFERROR(VLOOKUP(A45,Base!$C$2:$D$3,2,0),\"\")","v":""},null,null,null,null,null,null,null,null,null,null,null,null,null,null,null,"",null,null,0,0,0,0,0,0,0,0]
[null,{"$f":"IFERROR(VLOOKUP(A46,Base!$C$2:$D$3,2,0),\"\")","v":""},null,null,null,null,null,null,null,null,null,null,null,null,null,null,null,"",null,null,0,0,0,0,0,0,0,0]
[null,{"$f":"IFERROR(VLOOKUP(A47,Base!$C$2:$D$3,2,0),\"\")","v":""},null,null,null,null,null,null,null,null,null,null,null,null,null,null,null,"",null,null,0,0,0,0,0,0,0,0]
[null,{"$f":"IFERROR(VLOOKUP(A48,Base!$C$2:$D$3,2,0),\"\")","v":""},null,null,null,null,null,null,null,null,null,null,null,null,null,null,null,"",null,null,0,0,0,0,0,0,0,0]
[null,{"$f":"IFERROR(VLOOKUP(A49,Base!$C$2:$D$3,2,0),\"\")","v":""},null,null,null,null,null,null,null,null,null,null,null,null,null,null,null,"",null,null,0,0,0,0,0,0,0,0]
[null,{"$f":"IFERROR(VLOOKUP(A50,Base!$C$2:$D$3,2,0),\"\")","v":""},null,null,null,null,null,null,null,null,null,null,null,null,null,null,null,"",null,null,0,0,0,0,0,0,0,0]
[null,{"$f":"IFERROR(VLOOKUP(A51,Base!$C$2:$D$3,2,0),\"\")","v":""},null,null,null,null,null,null,null,null,null,null,null,null,null,null,null,"",null,null,0,0,0,0,0,0,0,0]
[null,{"$f":"IFERROR(VLOOKUP(A52,Base!$C$2:$D$3,2,0),\"\")","v":""},null,null,null,null,null,null,null,null,null,null,null,null,null,null,null,"",null,null,0,0,0,0,0,0,0,0]
[null,{"$f":"IFERROR(VLOOKUP(A53,Base!$C$2:$D$3,2,0),\"\")","v":""},null,null,null,null,null,null,null,null,null,null,null,null,null,null,null,"",null,null,0,0,0,0,0,0,0,0]
[null,{"$f":"IFERROR(VLOOKUP(A54,Base!$C$2:$D$3,2,0),\"\")","v":""},null,null,null,null,null,null,null,null,null,null,null,null,null,null,null,"",null,null,0,0,0,0,0,0,0,0]
[null,{"$f":"IFERROR(VLOOKUP(A55,Base!$C$2:$D$3,2,0),\"\")","v":""},null,null,null,null,null,null,null,null,null,null,null,null,null,null,null,"",null,null,0,0,0,0,0,0,0,0]
[null,{"$f":"IFERROR(VLOOKUP(A56,Base!$C$2:$D$3,2,0),\"\")","v":""},null,null,null,null,null,null,null,null,null,null,null,null,null,null,null,"",null,null,0,0,0,0,0,0,0,0]
[null,{"$f":"IFERROR(VLOOKUP(A57,Base!$C$2:$D$3,2,0),\"\")","v":""},null,null,null,null,null,null,null,null,null,null,null,null,null,null,null,"",null,null,0,0,0,0,0,0,0,0]
[null,{"$f":"IFERROR(VLOOKUP(A58,Base!$C$2:$D$3,2,0),\"\")","v":""},null,null,null,null,null,null,null,null,null,null,null,null,null,null,null,"",null,null,0,0,0,0,0,0,0,0]
[null,{"$f":"IFERROR(VLOOKUP(A59,Base!$C$2:$D$3,2,0),\"\")","v":""},null,null,null,null,null,null,null,null,null,null,null,null,null,null,null,"",null,null,0,0,0,0,0,0,0,0]
[null,{"$f":"IFERROR(VLOOKUP(A60,Base!$C$2:$D$3,2,0),\"\")","v":""},null,null,null,null,null,null,null,null,null,null,null,null,null,null,null,"",null,null,0,0,0,0,0,0,0,0]
[null,{"$f":"IFERROR(VLOOKUP(A61,Base!$C$2:$D$3,2,0),\"\")","v":""},null,null,null,null,null,null,null,null,null,null,null,null,null,null,null,"",null,null,0,0,0,0,0,0,0,0]
[null,{"$f":"IFERROR(VLOOKUP(A62,Base!$C$2:$D$3,2,0),\"\")","v":""},null,null,null,null,null,null,null,null,null,null,null,null,null,null,null,"",null,null,0,0,0,0,0,0,0,0]
[null,{"$f":"IFERROR(VLOOKUP(A63,Base!$C$2:$D$3,2,0),\"\")","v":""},null,null,null,null,null,null,null,null,null,null,null,null,null,null,null,"",null,null,0,0,0,0,0,0,0,0]
[null,{"$f":"IFERROR(VLOOKUP(A64,Base!$C$2:$D$3,2,0),\"\")","v":""},null,null,null,null,null,null,null,null,null,null,null,null,null,null,null,"",null,null,0,0,0,0,0,0,0,0]
[null,{"$f":"IFERROR(VLOOKUP(A65,Base!$C$2:$D$3,2,0),\"\")","v":""},null,null,null,null,null,null,null,null,null,null,null,null,null,null,null,"",null,null,0,0,0,0,0,0,0,0]
[null,{"$f":"IFERROR(VLOOKUP(A66,Base!$C$2:$D$3,2,0),\"\")","v":""},null,null,null,null,null,null,null,null,null,null,null,null,null,null,null,"",null,null,0,0,0,0,0,0,0,0]
[null,{"$f":"IFERROR(VLOOKUP(A67,Base!$C$2:$D$3,2,0),\"\")","v":""},null,null,null,null,null,null,null,null,null,null,null,null,null,null,null,"",null,null,0,0,0,0,0,0,0,0]
[null,{"$f":"IFERROR(VLOOKUP(A68,Base!$C$2:$D$3,2,0),\"\")","v":""},null,null,null,null,null,null,null,null,null,null,null,null,null,null,null,"",null,null,0,0,0,0,0,0,0,0]
[null,{"$f":"IFERROR(VLOOKUP(A69,Base!$C$2:$D$3,2,0),\"\")","v":""},null,null,null,null,null,null,null,null,null,null,null,null,null,null,null,"",null,null,0,0,0,0,0,0,0,0]
[null,{"$f":"IFERROR(VLOOKUP(A70,Base!$C$2:$D$3,2,0),\"\")","v":""},null,null,null,null,null,null,null,null,null,null,null,null,null,null,null,{"$f":"IF(K70=\"\",\"\",IF(SUM(M70:P70)=K70,\"Suma motivo de Pago correcto\",\"Existe un error en la suma de Motivo de Pago\"))","v":""},null,null,{"$f":"IF(LEN(K70)=0,0,F70-K70)","v":0},{"$f":"IF(LEN(K70)=0,F70,F70-K70)","v":0},{"$f":"IF(LEN(G70)=0,0,F70-G70)","v":0},{"$f":"IF(LEN(G70)=0,F70,F70-G70)","v":0},{"$f":"IF(AND(LEN(N70)=0,LEN(O70)=0,LEN(P70)=0),K70,K70-N70-O70-P70)","v":0},{"$f":"IF(AND(LEN(M70)=0,LEN(O70)=0,LEN(P70)=0),K70,K70-M70-O70-P70)","v":0},{"$f":"IF(AND(LEN(M70)=0,LEN(N70)=0,LEN(P70)=0),K70,K70-M70-N70-P70)","v":0},{"$f":"IF(AND(LEN(M70)=0,LEN(N70)=0,LEN(O70)=0),K70,K70-M70-N70-O70)","v":0}]
[null,{"$f":"IFERROR(VLOOKUP(A71,Base!$C$2:$D$3,2,0),\"\")","v":""},null,null,null,null,null,null,null,null,null,null,null,null,null,null,null,"",null,null,0,0,0,0,0,0,0,0]
[null,{"$f":"IFERROR(VLOOKUP(A72,Base!$C$2:$D$3,2,0),\"\")","v":""},null,null,null,null,null,null,null,null,null,null,null,null,null,null,null,"",null,null,0,0,0,0,0,0,0,0]
[null,{"$f":"IFERROR(VLOOKUP(A73,Base!$C$2:$D$3,2,0),\"\")","v":""},null,null,null,null,null,null,null,null,null,null,null,null,null,null,null,"",null,null,0,0,0,0,0,0,0,0]
[null,{"$f":"IFERROR(VLOOKUP(A74,Base!$C$2:$D$3,2,0),\"\")","v":""},null,null,null,null,null,null,null,null,null,null,null,null,null,null,null,"",null,null,0,0,0,0,0,0,0,0]
[null,{"$f":"IFERROR(VLOOKUP(A75,Base!$C$2:$D$3,2,0),\"\")","v":""},null,null,null,null,null,null,null,null,null,null,null,null,null,null,null,"",null,null,0,0,0,0,0,0,0,0]
[null,{"$f":"IFERROR(VLOOKUP(A76,Base!$C$2:$D$3,2,0),\"\")","v":""},null,null,null,null,null,null,null,null,null,null,null,null,null,null,null,"",null,null,0,0,0,0,0,0,0,0]
[null,{"$f":"IFERROR(VLOOKUP(A77,Base!$C$2:$D$3,2,0),\"\")","v":""},null,null,null,null,null,null,null,null,null,null,null,null,null,null,null,"",null,null,0,0,0,0,0,0,0,0]
[null,{"$f":"IFERROR(VLOOKUP(A78,Base!$C$2:$D$3,2,0),\"\")","v":""},null,null,null,null,null,null,null,null,null,null,null,null,null,null,null,"",null,null,0,0,0,0,0,0,0,0]
[null,{"$f":"IFERROR(VLOOKUP(A79,Base!$C$2:$D$3,2,0),\"\")","v":""},null,null,null,null,null,null,null,null,null,null,null,null,null,null,null,"",null,null,0,0,0,0,0,0,0,0]
[null,{"$f":"IFERROR(VLOOKUP(A80,Base!$C$2:$D$3,2,0),\"\")","v":""},null,null,null,null,null,null,null,null,null,null,null,null,null,null,null,"",null,null,0,0,0,0,0,0,0,0]
[null,{"$f":"IFERROR(VLOOKUP(A81,Base!$C$2:$D$3,2,0),\"\")","v":""},null,null,null,null,null,null,null,null,null,null,null,null,null,null,null,"",null,null,0,0,0,0,0,0,0,0]
[null,{"$f":"IFERROR(VLOOKUP(A82,Base!$C$2:$D$3,2,0),\"\")","v":""},null,null,null,null,null,null,null,null,null,null,null,null,null,null,null,"",null,null,0,0,0,0,0,0,0,0]
[null,{"$f":"IFERROR(VLOOKUP(A83,Base!$C$2:$D$3,2,0),\"\")","v":""},null,null,null,null,null,null,null,null,null,null,null,null,null,null,null,"",null,null,0,0,0,0,0,0,0,0]
[null,{"$f":"IFERROR(VLOOKUP(A84,Base!$C$2:$D$3,2,0),\"\")","v":""},null,null,null,null,null,null,null,null,null,null,null,null,null,null,null,"",null,null,0,0,0,0,0,0,0,0]
[null,{"$f":"IFERROR(VLOOKUP(A85,Base!$C$2:$D$3,2,0),\"\")","v":""},null,null,null,null,null,null,null,null,null,null,null,null,null,null,null,"",null,null,0,0,0,0,0,0,0,0]
[null,{"$f":"IFERROR(VLOOKUP(A86,Base!$C$2:$D$3,2,0),\"\")","v":""},null,null,null,null,null,null,null,null,null,null,null,null,null,null,null,"",null,null,0,0,0,0,0,0,0,0]
[null,{"$f":"IFERROR(VLOOKUP(A87,Base!$C$2:$D$3,2,0),\"\")","v":""},null,null,null,null,null,null,null,null,null,null,null,null,null,null,null,"",null,null,0,0,0,0,0,0,0,0]
[null,{"$f":"IFERROR(VLOOKUP(A88,Base!$C$2:$D$3,2,0),\"\")","v":""},null,null,null,null,null,null,null,null,null,null,null,null,null,null,null,"",null,null,0,0,0,0,0,0,0,0]
[null,{"$f":"IFERROR(VLOOKUP(A89,Base!$C$2:$D$3,2,0),\"\")","v":""},null,null,null,null,null,null,null,null,null,null,null,null,null,null,null,"",null,null,0,0,0,0,0,0,0,0]
[null,{"$f":"IFERROR(VLOOKUP(A90,Base!$C$2:$D$3,2,0),\"\")","v":""},null,null,null,null,null,null,null,null,null,null,null,null,null,null,null,"",null,null,0,0,0,0,0,0,0,0]
[null,{"$f":"IFERROR(VLOOKUP(A91,Base!$C$2:$D$3,2,0),\"\")","v":""},null,null,null,null,null,null,null,null,null,null,null,null,null,null,null,"",null,null,0,0,0,0,0,0,0,0]
[null,{"$f":"IFERROR(VLOOKUP(A92,Base!$C$2:$D$3,2,0),\"\")","v":""},null,null,null,null,null,null,null,null,null,null,null,null,null,null,null,"",null,null,0,0,0,0,0,0,0,0]
[null,{"$f":"IFERROR(VLOOKUP(A93,Base!$C$2:$D$3,2,0),\"\")","v":""},null,null,null,null,null,null,null,null,null,null,null,null,null,null,null,"",null,null,0,0,0,0,0,0,0,0]
[null,{"$f":"IFERROR(VLOOKUP(A94,Base!$C$2:$D$3,2,0),\"\")","v":""},null,null,null,null,null,null,null,null,null,null,null,null,null,null,null,"",null,null,0,0,0,0,0,0,0,0]
[null,{"$f":"IFERROR(VLOOKUP(A95,Base!$C$2:$D$3,2,0),\"\")","v":""},null,null,null,null,null,null,null,null,null,null,null,null,null,null,null,"",null,null,0,0,0,0,0,0,0,0]
[null,{"$f":"IFERROR(VLOOKUP(A96,Base!$C$2:$D$3,2,0),\"\")","v":""},null,null,null,null,null,null,null,null,null,null,null,null,null,null,null,"",null,null,0,0,0,0,0,0,0,0]
[null,{"$f":"IFERROR(VLOOKUP(A97,Base!$C$2:$D$3,2,0),\"\")","v":""},null,null,null,null,null,null,null,null,null,null,null,null,null,null,null,"",null,null,0,0,0,0,0,0,0,0]
[null,{"$f":"IFERROR(VLOOKUP(A98,Base!$C$2:$D$3,2,0),\"\")","v":""},null,null,null,null,null,null,null,null,null,null,null,null,null,null,null,"",null,null,0,0,0,0,0,0,0,0]
[null,{"$f":"IFERROR(VLOOKUP(A99,Base!$C$2:$D$3,2,0),\"\")","v":""},null,null,null,null,null,null,null,null,null,null,null,null,null,null,null,"",null,null,0,0,0,0,0,0,0,0]
[null,{"$f":"IFERROR(VLOOKUP(A100,Base!$C$2:$D$3,2,0),\"\")","v":""},null,null,null,null,null,null,null,null,null,null,null,null,null,null,null,"",null,null,0,0,0,0,0,0,0,0]
[null,{"$f":"IFERROR(VLOOKUP(A101,Base!$C$2:$D$3,2,0),\"\")","v":""},null,null,null,null,null,null,null,null,null,null,null,null,null,null,null,"",null,null,0,0,0,0,0,0,0,0]
[null,{"$f":"IFERROR(VLOOKUP(A102,Base!$C$2:$D$3,2,0),\"\")","v":""},null,null,null,null,null,null,null,null,null,null,null,null,null,null,null,"",null,null,0,0,0,0,0,0,0,0]
[null,{"$f":"IFERROR(VLOOKUP(A103,Base!$C$2:$D$3,2,0),\"\")","v":""},null,null,null,null,null,null,null,null,null,null,null,null,null,null,null,"",null,null,0,0,0,0,0,0,0,0]
[null,{"$f":"IFERROR(VLOOKUP(A104,Base!$C$2:$D$3,2,0),\"\")","v":""},null,null,null,null,null,null,null,null,null,null,null,null,null,null,null,"",null,null,0,0,0,0,0,0,0,0]
[null,{"$f":"IFERROR(VLOOKUP(A105,Base!$C$2:$D$3,2,0),\"\")","v":""},null,null,null,null,null,null,null,null,null,null,null,null,null,null,null,"",null,null,0,0,0,0,0,0,0,0]
[null,{"$f":"IFERROR(VLOOKUP(A106,Base!$C$2:$D$3,2,0),\"\")","v":""},null,null,null,null,null,null,null,null,null,null,null,null,null,null,null,"",null,null,0,0,0,0,0,0,0,0]
[null,{"$f":"IFERROR(VLOOKUP(A107,Base!$C$2:$D$3,2,0),\"\")","v":""},null,null,null,null,null,null,null,null,null,null,null,null,null,null,null,"",null,null,0,0,0,0,0,0,0,0]
[null,{"$f":"IFERROR(VLOOKUP(A108,Base!$C$2:$D$3,2,0),\"\")","v":""},null,null,null,null,null,null,null,null,null,null,null,null,null,null,null,"",null,null,0,0,0,0,0,0,0,0]
[null,{"$f":"IFERROR(VLOOKUP(A109,Base!$C$2:$D$3,2,0),\"\")","v":""},null,null,null,null,null,null,null,null,null,null,null,null,null,null,null,"",null,null,0,0,0,0,0,0,0,0]
[null,{"$f":"IFERROR(VLOOKUP(A110,Base!$C$2:$D$3,2,0),\"\")","v":""},null,null,null,null,null,null,null,null,null,null,null,null,null,null,null,"",null,null,0,0,0,0,0,0,0,0]
[null,{"$f":"IFERROR(VLOOKUP(A111,Base!$C$2:$D$3,2,0),\"\")","v":""},null,null,null,null,null,null,null,null,null,null,null,null,null,null,null,"",null,null,0,0,0,0,0,0,0,0]
[null,{"$f":"IFERROR(VLOOKUP(A112,Base!$C$2:$D$3,2,0),\"\")","v":""},null,null,null,null,null,null,null,null,null,null,null,null,null,null,null,"",null,null,0,0,0,0,0,0,0,0]
[null,{"$f":"IFERROR(VLOOKUP(A113,Base!$C$2:$D$3,2,0),\"\")","v":""},null,null,null,null,null,null,null,null,null,null,null,null,null,null,null,"",null,null,0,0,0,0,0,0,0,0]
[null,{"$f":"IFERROR(VLOOKUP(A114,Base!$C$2:$D$3,2,0),\"\")","v":""},null,null,null,null,null,null,null,null,null,null,null,null,null,null,null,"",null,null,0,0,0,0,0,0,0,0]
[null,{"$f":"IFERROR(VLOOKUP(A115,Base!$C$2:$D$3,2,0),\"\")","v":""},null,null,null,null,null,null,null,null,null,null,null,null,null,null,null,"",null,null,0,0,0,0,0,0,0,0]
[null,{"$f":"IFERROR(VLOOKUP(A116,Base!$C$2:$D$3,2,0),\"\")","v":""},null,null,null,null,null,null,null,null,null,null,null,null,null,null,null,"",null,null,0,0,0,0,0,0,0,0]
[null,{"$f":"IFERROR(VLOOKUP(A117,Base!$C$2:$D$3,2,0),\"\")","v":""},null,null,null,null,null,null,null,null,null,null,null,null,null,null,null,"",null,null,0,0,0,0,0,0,0,0]
[null,{"$f":"IFERROR(VLOOKUP(A118,Base!$C$2:$D$3,2,0),\"\")","v":""},null,null,null,null,null,null,null,null,null,null,null,null,null,null,null,"",null,null,0,0,0,0,0,0,0,0]
[null,{"$f":"IFERROR(VLOOKUP(A119,Base!$C$2:$D$3,2,0),\"\")","v":""},null,null,null,null,null,null,null,null,null,null,null,null,null,null,null,"",null,null,0,0,0,0,0,0,0,0]
[null,{"$f":"IFERROR(VLOOKUP(A120,Base!$C$2:$D$3,2,0),\"\")","v":""},null,null,null,null,null,null,null,null,null,null,null,null,null,null,null,"",null,null,0,0,0,0,0,0,0,0]
[null,{"$f":"IFERROR(VLOOKUP(A121,Base!$C$2:$D$3,2,0),\"\")","v":""},null,null,null,null,null,null,null,null,null,null,null,null,null,null,null,"",null,null,0,0,0,0,0,0,0,0]
[null,{"$f":"IFERROR(VLOOKUP(A122,Base!$C$2:$D$3,2,0),\"\")","v":""},null,null,null,null,null,null,null,null,null,null,null,null,null,null,null,"",null,null,0,0,0,0,0,0,0,0]
[null,{"$f":"IFERROR(VLOOKUP(A123,Base!$C$2:$D$3,2,0),\"\")","v":""},null,null,null,null,null,null,null,null,null,null,null,null,null,null,null,"",null,null,0,0,0,0,0,0,0,0]
[null,{"$f":"IFERROR(VLOOKUP(A124,Base!$C$2:$D$3,2,0),\"\")","v":""},null,null,null,null,null,null,null,null,null,null,null,null,null,null,null,"",null,null,0,0,0,0,0,0,0,0]
[null,{"$f":"IFERROR(VLOOKUP(A125,Base!$C$2:$D$3,2,0),\"\")","v":""},null,null,null,null,null,null,null,null,null,null,null,null,null,null,null,"",null,null,0,0,0,0,0,0,0,0]
[null,{"$f":"IFERROR(VLOOKUP(A126,Base!$C$2:$D$3,2,0),\"\")","v":""},null,null,null,null,null,null,null,null,null,null,null,null,null,null,null,"",null,null,0,0,0,0,0,0,0,0]
[null,{"$f":"IFERROR(VLOOKUP(A127,Base!$C$2:$D$3,2,0),\"\")","v":""},null,null,null,null,null,null,null,null,null,null,null,null,null,null,null,"",null,null,0,0,0,0,0,0,0,0]
[null,{"$f":"IFERROR(VLOOKUP(A128,Base!$C$2:$D$3,2,0),\"\")","v":""},null,null,null,null,null,null,null,null,null,null,null,null,null,null,null,"",null,null,0,0,0,0,0,0,0,0]
[null,{"$f":"IFERROR(VLOOKUP(A129,Base!$C$2:$D$3,2,0),\"\")","v":""},null,null,null,null,null,null,null,null,null,null,null,null,null,null,null,"",null,null,0,0,0,0,0,0,0,0]
[null,{"$f":"IFERROR(VLOOKUP(A130,Base!$C$2:$D$3,2,0),\"\")","v":""},null,null,null,null,null,null,null,null,null,null,null,null,null,null,null,"",null,null,0,0,0,0,0,0,0,0]
[null,{"$f":"IFERROR(VLOOKUP(A131,Base!$C$2:$D$3,2,0),\"\")","v":""},null,null,null,null,null,null,null,null,null,null,null,null,null,null,null,"",null,null,0,0,0,0,0,0,0,0]
[null,{"$f":"IFERROR(VLOOKUP(A132,Base!$C$2:$D$3,2,0),\"\")","v":""},null,null,null,null,null,null,null,null,null,null,null,null,null,null,null,"",null,null,0,0,0,0,0,0,0,0]
[null,{"$f":"IFERROR(VLOOKUP(A133,Base!$C$2:$D$3,2,0),\"\")","v":""},null,null,null,null,null,null,null,null,null,null,null,null,null,null,null,"",null,null,0,0,0,0,0,0,0,0]
[null,{"$f":"IFERROR(VLOOKUP(A134,Base!$C$2:$D$3,2,0),\"\")","v":""},null,null,null,null,null,null,null,null,null,null,null,null,null,null,null,{"$f":"IF(K134=\"\",\"\",IF(SUM(M134:P134)=K134,\"Suma motivo de Pago correcto\",\"Existe un error en la suma de Motivo de Pago\"))","v":""},null,null,{"$f":"IF(LEN(K134)=0,0,F134-K134)","v":0},{"$f":"IF(LEN(K134)=0,F134,F134-K134)","v":0},{"$f":"IF(LEN(G134)=0,0,F134-G134)","v":0},{"$f":"IF(LEN(G134)=0,F134,F134-G134)","v":0},{"$f":"IF(AND(LEN(N134)=0,LEN(O134)=0,LEN(P134)=0),K134,K134-N134-O134-P134)","v":0},{"$f":"IF(AND(LEN(M134)=0,LEN(O134)=0,LEN(P134)=0),K134,K134-M134-O134-P134)","v":0},{"$f":"IF(AND(LEN(M134)=0,LEN(N134)=0,LEN(P134)=0),K134,K134-M134-N134-P134)","v":0},{"$f":"IF(AND(LEN(M134)=0,LEN(N134)=0,LEN(O134)=0),K134,K134-M134-N134-O134)","v":0}]
[null,{"$f":"IFERROR(VLOOKUP(A135,Base!$C$2:$D$3,2,0),\"\")","v":""},null,null,null,null,null,null,null,null,null,null,null,null,null,null,null,"",null,null,0,0,0,0,0,0,0,0]
[null,{"$f":"IFERROR(VLOOKUP(A136,Base!$C$2:$D$3,2,0),\"\")","v":""},null,null,null,null,null,null,null,null,null,null,null,null,null,null,null,"",null,null,0,0,0,0,0,0,0,0]
[null,{"$f":"IFERROR(VLOOKUP(A137,Base!$C$2:$D$3,2,0),\"\")","v":""},null,null,null,null,null,null,null,null,null,null,null,null,null,null,null,"",null,null,0,0,0,0,0,0,0,0]
[null,{"$f":"IFERROR(VLOOKUP(A138,Base!$C$2:$D$3,2,0),\"\")","v":""},null,null,null,null,null,null,null,null,null,null,null,null,null,null,null,"",null,null,0,0,0,0,0,0,0,0]
[null,{"$f":"IFERROR(VLOOKUP(A139,Base!$C$2:$D$3,2,0),\"\")","v":""},null,null,null,null,null,null,null,null,null,null,null,null,null,null,null,"",null,null,0,0,0,0,0,0,0,0]
[null,{"$f":"IFERROR(VLOOKUP(A140,Base!$C$2:$D$3,2,0),\"\")","v":""},null,null,null,null,null,null,null,null,null,null,null,null,null,null,null,"",null,null,0,0,0,0,0,0,0,0]
[null,{"$f":"IFERROR(VLOOKUP(A141,Base!$C$2:$D$3,2,0),\"\")","v":""},null,null,null,null,null,null,null,null,null,null,null,null,null,null,null,"",null,null,0,0,0,0,0,0,0,0]
[null,{"$f":"IFERROR(VLOOKUP(A142,Base!$C$2:$D$3,2,0),\"\")","v":""},null,null,null,null,null,null,null,null,null,null,null,null,null,null,null,"",null,null,0,0,0,0,0,0,0,0]
[null,{"$f":"IFERROR(VLOOKUP(A143,Base!$C$2:$D$3,2,0),\"\")","v":""},null,null,null,null,null,null,null,null,null,null,null,null,null,null,null,"",null,null,0,0,0,0,0,0,0,0]
[null,{"$f":"IFERROR(VLOOKUP(A144,Base!$C$2:$D$3,2,0),\"\")","v":""},null,null,null,null,null,null,null,null,null,null,null,null,null,null,null,"",null,null,0,0,0,0,0,0,0,0]
[null,{"$f":"IFERROR(VLOOKUP(A145,Base!$C$2:$D$3,2,0),\"\")","v":""},null,null,null,null,null,null,null,null,null,null,null,null,null,null,null,"",null,null,0,0,0,0,0,0,0,0]
[null,{"$f":"IFERROR(VLOOKUP(A146,Base!$C$2:$D$3,2,0),\"\")","v":""},null,null,null,null,null,null,null,null,null,null,null,null,null,null,null,"",null,null,0,0,0,0,0,0,0,0]
[null,{"$f":"IFERROR(VLOOKUP(A147,Base!$C$2:$D$3,2,0),\"\")","v":""},null,null,null,null,null,null,null,null,null,null,null,null,null,null,null,"",null,null,0,0,0,0,0,0,0,0]
[null,{"$f":"IFERROR(VLOOKUP(A148,Base!$C$2:$D$3,2,0),\"\")","v":""},null,null,null,null,null,null,null,null,null,null,null,null,null,null,null,"",null,null,0,0,0,0,0,0,0,0]
[null,{"$f":"IFERROR(VLOOKUP(A149,Base!$C$2:$D$3,2,0),\"\")","v":""},null,null,null,null,null,null,null,null,null,null,null,null,null,null,null,"",null,null,0,0,0,0,0,0,0,0]
[null,{"$f":"IFERROR(VLOOKUP(A150,Base!$C$2:$D$3,2,0),\"\")","v":""},null,null,null,null,null,null,null,null,null,null,null,null,null,null,null,"",null,null,0,0,0,0,0,0,0,0]
[null,{"$f":"IFERROR(VLOOKUP(A151,Base!$C$2:$D$3,2,0),\"\")","v":""},null,null,null,null,null,null,null,null,null,null,null,null,null,null,null,"",null,null,0,0,0,0,0,0,0,0]
[null,{"$f":"IFERROR(VLOOKUP(A152,Base!$C$2:$D$3,2,0),\"\")","v":""},null,null,null,null,null,null,null,null,null,null,null,null,null,null,null,"",null,null,0,0,0,0,0,0,0,0]
[null,{"$f":"IFERROR(VLOOKUP(A153,Base!$C$2:$D$3,2,0),\"\")","v":""},null,null,null,null,null,null,null,null,null,null,null,null,null,null,null,"",null,null,0,0,0,0,0,0,0,0]
[null,{"$f":"IFERROR(VLOOKUP(A154,Base!$C$2:$D$3,2,0),\"\")","v":""},null,null,null,null,null,null,null,null,null,null,null,null,null,null,null,"",null,null,0,0,0,0,0,0,0,0]
[null,{"$f":"IFERROR(VLOOKUP(A155,Base!$C$2:$D$3,2,0),\"\")","v":""},null,null,null,null,null,null,null,null,null,null,null,null,null,null,null,"",null,null,0,0,0,0,0,0,0,0]
[null,{"$f":"IFERROR(VLOOKUP(A156,Base!$C$2:$D$3,2,0),\"\")","v":""},null,null,null,null,null,null,null,null,null,null,null,null,null,null,null,"",null,null,0,0,0,0,0,0,0,0]
[null,{"$f":"IFERROR(VLOOKUP(A157,Base!$C$2:$D$3,2,0),\"\")","v":""},null,null,null,null,null,null,null,null,null,null,null,null,null,null,null,"",null,null,0,0,0,0,0,0,0,0]
[null,{"$f":"IFERROR(VLOOKUP(A158,Base!$C$2:$D$3,2,0),\"\")","v":""},null,null,null,null,null,null,null,null,null,null,null,null,null,null,null,"",null,null,0,0,0,0,0,0,0,0]
[null,{"$f":"IFERROR(VLOOKUP(A159,Base!$C$2:$D$3,2,0),\"\")","v":""},null,null,null,null,null,null,null,null,null,null,null,null,null,null,null,"",null,null,0,0,0,0,0,0,0,0]
[null,{"$f":"IFERROR(VLOOKUP(A160,Base!$C$2:$D$3,2,0),\"\")","v":""},null,null,null,null,null,null,null,null,null,null,null,null,null,null,null,"",null,null,0,0,0,0,0,0,0,0]
[null,{"$f":"IFERROR(VLOOKUP(A161,Base!$C$2:$D$3,2,0),\"\")","v":""},null,null,null,null,null,null,null,null,null,null,null,null,null,null,null,"",null,null,0,0,0,0,0,0,0,0]
[null,{"$f":"IFERROR(VLOOKUP(A162,Base!$C$2:$D$3,2,0),\"\")","v":""},null,null,null,null,null,null,null,null,null,null,null,null,null,null,null,"",null,null,0,0,0,0,0,0,0,0]
[null,{"$f":"IFERROR(VLOOKUP(A163,Base!$C$2:$D$3,2,0),\"\")","v":""},null,null,null,null,null,null,null,null,null,null,null,null,null,null,null,"",null,null,0,0,0,0,0,0,0,0]
[null,{"$f":"IFERROR(VLOOKUP(A164,Base!$C$2:$D$3,2,0),\"\")","v":""},null,null,null,null,null,null,null,null,null,null,null,null,null,null,null,"",null,null,0,0,0,0,0,0,0,0]
[null,{"$f":"IFERROR(VLOOKUP(A165,Base!$C$2:$D$3,2,0),\"\")","v":""},null,null,null,null,null,null,null,null,null,null,null,null,null,null,null,"",null,null,0,0,0,0,0,0,0,0]
[null,{"$f":"IFERROR(VLOOKUP(A166,Base!$C$2:$D$3,2,0),\"\")","v":""},null,null,null,null,null,null,null,null,null,null,null,null,null,null,null,"",null,null,0,0,0,0,0,0,0,0]
[null,{"$f":"IFERROR(VLOOKUP(A167,Base!$C$2:$D$3,2,0),\"\")","v":""},null,null,null,null,null,null,null,null,null,null,null,null,null,null,null,"",null,null,0,0,0,0,0,0,0,0]
[null,{"$f":"IFERROR(VLOOKUP(A168,Base!$C$2:$D$3,2,0),\"\")","v":""},null,null,null,null,null,null,null,null,null,null,null,null,null,null,null,"",null,null,0,0,0,0,0,0,0,0]
[null,{"$f":"IFERROR(VLOOKUP(A169,Base!$C$2:$D$3,2,0),\"\")","v":""},null,null,null,null,null,null,null,null,null,null,null,null,null,null,null,"",null,null,0,0,0,0,0,0,0,0]
[null,{"$f":"IFERROR(VLOOKUP(A170,Base!$C$2:$D$3,2,0),\"\")","v":""},null,null,null,null,null,null,null,null,null,null,null,null,null,null,null,"",null,null,0,0,0,0,0,0,0,0]
[null,{"$f":"IFERROR(VLOOKUP(A171,Base!$C$2:$D$3,2,0),\"\")","v":""},null,null,null,null,null,null,null,null,null,null,null,null,null,null,null,"",null,null,0,0,0,0,0,0,0,0]
[null,{"$f":"IFERROR(VLOOKUP(A172,Base!$C$2:$D$3,2,0),\"\")","v":""},null,null,null,null,null,null,null,null,null,null,null,null,null,null,null,"",null,null,0,0,0,0,0,0,0,0]
[null,{"$f":"IFERROR(VLOOKUP(A173,Base!$C$2:$D$3,2,0),\"\")","v":""},null,null,null,null,null,null,null,null,null,null,null,null,null,null,null,"",null,null,0,0,0,0,0,0,0,0]
[null,{"$f":"IFERROR(VLOOKUP(A174,Base!$C$2:$D$3,2,0),\"\")","v":""},null,null,null,null,null,null,null,null,null,null,null,null,null,null,null,"",null,null,0,0,0,0,0,0,0,0]
[null,{"$f":"IFERROR(VLOOKUP(A175,Base!$C$2:$D$3,2,0),\"\")","v":""},null,null,null,null,null,null,null,null,null,null,null,null,null,null,null,"",null,null,0,0,0,0,0,0,0,0]
[null,{"$f":"IFERROR(VLOOKUP(A176,Base!$C$2:$D$3,2,0),\"\")","v":""},null,null,null,null,null,null,null,null,null,null,null,null,null,null,null,"",null,null,0,0,0,0,0,0,0,0]
[null,{"$f":"IFERROR(VLOOKUP(A177,Base!$C$2:$D$3,2,0),\"\")","v":""},null,null,null,null,null,null,null,null,null,null,null,null,null,null,null,"",null,null,0,0,0,0,0,0,0,0]
[null,{"$f":"IFERROR(VLOOKUP(A178,Base!$C$2:$D$3,2,0),\"\")","v":""},null,null,null,null,null,null,null,null,null,null,null,null,null,null,null,"",null,null,0,0,0,0,0,0,0,0]
[null,{"$f":"IFERROR(VLOOKUP(A179,Base!$C$2:$D$3,2,0),\"\")","v":""},null,null,null,null,null,null,null,null,null,null,null,null,null,null,null,"",null,null,0,0,0,0,0,0,0,0]
[null,{"$f":"IFERROR(VLOOKUP(A180,Base!$C$2:$D$3,2,0),\"\")","v":""},null,null,null,null,null,null,null,null,null,null,null,null,null,null,null,"",null,null,0,0,0,0,0,0,0,0]
[null,{"$f":"IFERROR(VLOOKUP(A181,Base!$C$2:$D$3,2,0),\"\")","v":""},null,null,null,null,null,null,null,null,null,null,null,null,null,null,null,"",null,null,0,0,0,0,0,0,0,0]
[null,{"$f":"IFERROR(VLOOKUP(A182,Base!$C$2:$D$3,2,0),\"\")","v":""},null,null,null,null,null,null,null,null,null,null,null,null,null,null,null,"",null,null,0,0,0,0,0,0,0,0]
[null,{"$f":"IFERROR(VLOOKUP(A183,Base!$C$2:$D$3,2,0),\"\")","v":""},null,null,null,null,null,null,null,null,null,null,null,null,null,null,null,"",null,null,0,0,0,0,0,0,0,0]
[null,{"$f":"IFERROR(VLOOKUP(A184,Base!$C$2:$D$3,2,0),\"\")","v":""},null,null,null,null,null,null,null,null,null,null,null,null,null,null,null,"",null,null,0,0,0,0,0,0,0,0]
[null,{"$f":"IFERROR(VLOOKUP(A185,Base!$C$2:$D$3,2,0),\"\")","v":""},null,null,null,null,null,null,null,null,null,null,null,null,null,null,null,"",null,null,0,0,0,0,0,0,0,0]
[null,{"$f":"IFERROR(VLOOKUP(A186,Base!$C$2:$D$3,2,0),\"\")","v":""},null,null,null,null,null,null,null,null,null,null,null,null,null,null,null,"",null,null,0,0,0,0,0,0,0,0]
[null,{"$f":"IFERROR(VLOOKUP(A187,Base!$C$2:$D$3,2,0),\"\")","v":""},null,null,null,null,null,null,null,null,null,null,null,null,null,null,null,"",null,null,0,0,0,0,0,0,0,0]
[null,{"$f":"IFERROR(VLOOKUP(A188,Base!$C$2:$D$3,2,0),\"\")","v":""},null,null,null,null,null,null,null,null,null,null,null,null,null,null,null,"",null,null,0,0,0,0,0,0,0,0]
[null,{"$f":"IFERROR(VLOOKUP(A189,Base!$C$2:$D$3,2,0),\"\")","v":""},null,null,null,null,null,null,null,null,null,null,null,null,null,null,null,"",null,null,0,0,0,0,0,0,0,0]
[null,{"$f":"IFERROR(VLOOKUP(A190,Base!$C$2:$D$3,2,0),\"\")","v":""},null,null,null,null,null,null,null,null,null,null,null,null,null,null,null,"",null,null,0,0,0,0,0,0,0,0]
[null,{"$f":"IFERROR(VLOOKUP(A191,Base!$C$2:$D$3,2,0),\"\")","v":""},null,null,null,null,null,null,null,null,null,null,null,null,null,null,null,"",null,null,0,0,0,0,0,0,0,0]
[null,{"$f":"IFERROR(VLOOKUP(A192,Base!$C$2:$D$3,2,0),\"\")","v":""},null,null,null,null,null,null,null,null,null,null,null,null,null,null,null,"",null,null,0,0,0,0,0,0,0,0]
[null,{"$f":"IFERROR(VLOOKUP(A193,Base!$C$2:$D$3,2,0),\"\")","v":""},null,null,null,null,null,null,null,null,null,null,null,null,null,null,null,"",null,null,0,0,0,0,0,0,0,0]
[null,{"$f":"IFERROR(VLOOKUP(A194,Base!$C$2:$D$3,2,0),\"\")","v":""},null,null,null,null,null,null,null,null,null,null,null,null,null,null,null,"",null,null,0,0,0,0,0,0,0,0]
[null,{"$f":"IFERROR(VLOOKUP(A195,Base!$C$2:$D$3,2,0),\"\")","v":""},null,null,null,null,null,null,null,null,null,null,null,null,null,null,null,"",null,null,0,0,0,0,0,0,0,0]
[null,{"$f":"IFERROR(VLOOKUP(A196,Base!$C$2:$D$3,2,0),\"\")","v":""},null,null,null,null,null,null,null,null,null,null,null,null,null,null,null,"",null,null,0,0,0,0,0,0,0,0]
[null,{"$f":"IFERROR(VLOOKUP(A197,Base!$C$2:$D$3,2,0),\"\")","v":""},null,null,null,null,null,null,null,null,null,null,null,null,null,null,null,"",null,null,0,0,0,0,0,0,0,0]
[null,{"$f":"IFERROR(VLOOKUP(A198,Base!$C$2:$D$3,2,0),\"\")","v":""},null,null,null,null,null,null,null,null,null,null,null,null,null,null,null,{"$f":"IF(K198=\"\",\"\",IF(SUM(M198:P198)=K198,\"Suma motivo de Pago correcto\",\"Existe un error en la suma de Motivo de Pago\"))","v":""},null,null,{"$f":"IF(LEN(K198)=0,0,F198-K198)","v":0},{"$f":"IF(LEN(K198)=0,F198,F198-K198)","v":0},{"$f":"IF(LEN(G198)=0,0,F198-G198)","v":0},{"$f":"IF(LEN(G198)=0,F198,F198-G198)","v":0},{"$f":"IF(AND(LEN(N198)=0,LEN(O198)=0,LEN(P198)=0),K198,K198-N198-O198-P198)","v":0},{"$f":"IF(AND(LEN(M198)=0,LEN(O198)=0,LEN(P198)=0),K198,K198-M198-O198-P198)","v":0},{"$f":"IF(AND(LEN(M198)=0,LEN(N198)=0,LEN(P198)=0),K198,K198-M198-N198-P198)","v":0},{"$f":"IF(AND(LEN(M198)=0,LEN(N198)=0,LEN(O198)=0),K198,K198-M198-N198-O198)","v":0}]
[null,{"$f":"IFERROR(VLOOKUP(A199,Base!$C$2:$D$3,2,0),\"\")","v":""},null,null,null,null,null,null,null,null,null,null,null,null,null,null,null,"",null,null,0,0,0,0,0,0,0,0]
[null,{"$f":"IFERROR(VLOOKUP(A200,Base!$C$2:$D$3,2,0),\"\")","v":""},null,null,null,null,null,null,null,null,null,null,null,null,null,null,null,"",null,null,0,0,0,0,0,0,0,0]
[null,{"$f":"IFERROR(VLOOKUP(A201,Base!$C$2:$D$3,2,0),\"\")","v":""},null,null,null,null,null,null,null,null,null,null,null,null,null,null,null,"",null,null,0,0,0,0,0,0,0,0]
[null,{"$f":"IFERROR(VLOOKUP(A202,Base!$C$2:$D$3,2,0),\"\")","v":""},null,null,null,null,null,null,null,null,null,null,null,null,null,null,null,"",null,null,0,0,0,0,0,0,0,0]
[null,{"$f":"IFERROR(VLOOKUP(A203,Base!$C$2:$D$3,2,0),\"\")","v":""},null,null,null,null,null,null,null,null,null,null,null,null,null,null,null,"",null,null,0,0,0,0,0,0,0,0]
[null,{"$f":"IFERROR(VLOOKUP(A204,Base!$C$2:$D$3,2,0),\"\")","v":""},null,null,null,null,null,null,null,null,null,null,null,null,null,null,null,"",null,null,0,0,0,0,0,0,0,0]
[null,{"$f":"IFERROR(VLOOKUP(A205,Base!$C$2:$D$3,2,0),\"\")","v":""},null,null,null,null,null,null,null,null,null,null,null,null,null,null,null,"",null,null,0,0,0,0,0,0,0,0]
[null,{"$f":"IFERROR(VLOOKUP(A206,Base!$C$2:$D$3,2,0),\"\")","v":""},null,null,null,null,null,null,null,null,null,null,null,null,null,null,null,"",null,null,0,0,0,0,0,0,0,0]
[null,{"$f":"IFERROR(VLOOKUP(A207,Base!$C$2:$D$3,2,0),\"\")","v":""},null,null,null,null,null,null,null,null,null,null,null,null,null,null,null,"",null,null,0,0,0,0,0,0,0,0]
[null,{"$f":"IFERROR(VLOOKUP(A208,Base!$C$2:$D$3,2,0),\"\")","v":""},null,null,null,null,null,null,null,null,null,null,null,null,null,null,null,"",null,null,0,0,0,0,0,0,0,0]
[null,{"$f":"IFERROR(VLOOKUP(A209,Base!$C$2:$D$3,2,0),\"\")","v":""},null,null,null,null,null,null,null,null,null,null,null,null,null,null,null,"",null,null,0,0,0,0,0,0,0,0]
[null,{"$f":"IFERROR(VLOOKUP(A210,Base!$C$2:$D$3,2,0),\"\")","v":""},null,null,null,null,null,null,null,null,null,null,null,null,null,null,null,"",null,null,0,0,0,0,0,0,0,0]
[null,{"$f":"IFERROR(VLOOKUP(A211,Base!$C$2:$D$3,2,0),\"\")","v":""},null,null,null,null,null,null,null,null,null,null,null,null,null,null,null,"",null,null,0,0,0,0,0,0,0,0]
[null,{"$f":"IFERROR(VLOOKUP(A212,Base!$C$2:$D$3,2,0),\"\")","v":""},null,null,null,null,null,null,null,null,null,null,null,null,null,null,null,"",null,null,0,0,0,0,0,0,0,0]
[null,{"$f":"IFERROR(VLOOKUP(A213,Base!$C$2:$D$3,2,0),\"\")","v":""},null,null,null,null,null,null,null,null,null,null,null,null,null,null,null,"",null,null,0,0,0,0,0,0,0,0]
[null,{"$f":"IFERROR(VLOOKUP(A214,Base!$C$2:$D$3,2,0),\"\")","v":""},null,null,null,null,null,null,null,null,null,null,null,null,null,null,null,"",null,null,0,0,0,0,0,0,0,0]
[null,{"$f":"IFERROR(VLOOKUP(A215,Base!$C$2:$D$3,2,0),\"\")","v":""},null,null,null,null,null,null,null,null,null,null,null,null,null,null,null,"",null,null,0,0,0,0,0,0,0,0]
[null,{"$f":"IFERROR(VLOOKUP(A216,Base!$C$2:$D$3,2,0),\"\")","v":""},null,null,null,null,null,null,null,null,null,null,null,null,null,null,null,"",null,null,0,0,0,0,0,0,0,0]
[null,{"$f":"IFERROR(VLOOKUP(A217,Base!$C$2:$D$3,2,0),\"\")","v":""},null,null,null,null,null,null,null,null,null,null,null,null,null,null,null,"",null,null,0,0,0,0,0,0,0,0]
[null,{"$f":"IFERROR(VLOOKUP(A218,Base!$C$2:$D$3,2,0),\"\")","v":""},null,null,null,null,null,null,null,null,null,null,null,null,null,null,null,"",null,null,0,0,0,0,0,0,0,0]
[null,{"$f":"IFERROR(VLOOKUP(A219,Base!$C$2:$D$3,2,0),\"\")","v":""},null,null,null,null,null,null,null,null,null,null,null,null,null,null,null,"",null,null,0,0,0,0,0,0,0,0]
[null,{"$f":"IFERROR(VLOOKUP(A220,Base!$C$2:$D$3,2,0),\"\")","v":""},null,null,null,null,null,null,null,null,null,null,null,null,null,null,null,"",null,null,0,0,0,0,0,0,0,0]
[null,{"$f":"IFERROR(VLOOKUP(A221,Base!$C$2:$D$3,2,0),\"\")","v":""},null,null,null,null,null,null,null,null,null,null,null,null,null,null,null,"",null,null,0,0,0,0,0,0,0,0]
[null,{"$f":"IFERROR(VLOOKUP(A222,Base!$C$2:$D$3,2,0),\"\")","v":""},null,null,null,null,null,null,null,null,null,null,null,null,null,null,null,"",null,null,0,0,0,0,0,0,0,0]
[null,{"$f":"IFERROR(VLOOKUP(A223,Base!$C$2:$D$3,2,0),\"\")","v":""},null,null,null,null,null,null,null,null,null,null,null,null,null,null,null,"",null,null,0,0,0,0,0,0,0,0]
[null,{"$f":"IFERROR(VLOOKUP(A224,Base!$C$2:$D$3,2,0),\"\")","v":""},null,null,null,null,null,null,null,null,null,null,null,null,null,null,null,"",null,null,0,0,0,0,0,0,0,0]
[null,{"$f":"IFERROR(VLOOKUP(A225,Base!$C$2:$D$3,2,0),\"\")","v":""},null,null,null,null,null,null,null,null,null,null,null,null,null,null,null,"",null,null,0,0,0,0,0,0,0,0]
[null,{"$f":"IFERROR(VLOOKUP(A226,Base!$C$2:$D$3,2,0),\"\")","v":""},null,null,null,null,null,null,null,null,null,null,null,null,null,null,null,"",null,null,0,0,0,0,0,0,0,0]
[null,{"$f":"IFERROR(VLOOKUP(A227,Base!$C$2:$D$3,2,0),\"\")","v":""},null,null,null,null,null,null,null,null,null,null,null,null,null,null,null,"",null,null,0,0,0,0,0,0,0,0]
[null,{"$f":"IFERROR(VLOOKUP(A228,Base!$C$2:$D$3,2,0),\"\")","v":""},null,null,null,null,null,null,null,null,null,null,null,null,null,null,null,"",null,null,0,0,0,0,0,0,0,0]
[null,{"$f":"IFERROR(VLOOKUP(A229,Base!$C$2:$D$3,2,0),\"\")","v":""},null,null,null,null,null,null,null,null,null,null,null,null,null,null,null,"",null,null,0,0,0,0,0,0,0,0]
[null,{"$f":"IFERROR(VLOOKUP(A230,Base!$C$2:$D$3,2,0),\"\")","v":""},null,null,null,null,null,null,null,null,null,null,null,null,null,null,null,"",null,null,0,0,0,0,0,0,0,0]
[null,{"$f":"IFERROR(VLOOKUP(A231,Base!$C$2:$D$3,2,0),\"\")","v":""},null,null,null,null,null,null,null,null,null,null,null,null,null,null,null,"",null,null,0,0,0,0,0,0,0,0]
[null,{"$f":"IFERROR(VLOOKUP(A232,Base!$C$2:$D$3,2,0),\"\")","v":""},null,null,null,null,null,null,null,null,null,null,null,null,null,null,null,"",null,null,0,0,0,0,0,0,0,0]
[null,{"$f":"IFERROR(VLOOKUP(A233,Base!$C$2:$D$3,2,0),\"\")","v":""},null,null,null,null,null,null,null,null,null,null,null,null,null,null,null,"",null,null,0,0,0,0,0,0,0,0]
[null,{"$f":"IFERROR(VLOOKUP(A234,Base!$C$2:$D$3,2,0),\"\")","v":""},null,null,null,null,null,null,null,null,null,null,null,null,null,null,null,"",null,null,0,0,0,0,0,0,0,0]
[null,{"$f":"IFERROR(VLOOKUP(A235,Base!$C$2:$D$3,2,0),\"\")","v":""},null,null,null,null,null,null,null,null,null,null,null,null,null,null,null,"",null,null,0,0,0,0,0,0,0,0]
[null,{"$f":"IFERROR(VLOOKUP(A236,Base!$C$2:$D$3,2,0),\"\")","v":""},null,null,null,null,null,null,null,null,null,null,null,null,null,null,null,"",null,null,0,0,0,0,0,0,0,0]
[null,{"$f":"IFERROR(VLOOKUP(A237,Base!$C$2:$D$3,2,0),\"\")","v":""},null,null,null,null,null,null,null,null,null,null,null,null,null,null,null,"",null,null,0,0,0,0,0,0,0,0]
[null,{"$f":"IFERROR(VLOOKUP(A238,Base!$C$2:$D$3,2,0),\"\")","v":""},null,null,null,null,null,null,null,null,null,null,null,null,null,null,null,"",null,null,0,0,0,0,0,0,0,0]
[null,{"$f":"IFERROR(VLOOKUP(A239,Base!$C$2:$D$3,2,0),\"\")","v":""},null,null,null,null,null,null,null,null,null,null,null,null,null,null,null,"",null,null,0,0,0,0,0,0,0,0]
[null,{"$f":"IFERROR(VLOOKUP(A240,Base!$C$2:$D$3,2,0),\"\")","v":""},null,null,null,null,null,null,null,null,null,null,null,null,null,null,null,"",null,null,0,0,0,0,0,0,0,0]
[null,{"$f":"IFERROR(VLOOKUP(A241,Base!$C$2:$D$3,2,0),\"\")","v":""},null,null,null,null,null,null,null,null,null,null,null,null,null,null,null,"",null,null,0,0,0,0,0,0,0,0]
[null,{"$f":"IFERROR(VLOOKUP(A242,Base!$C$2:$D$3,2,0),\"\")","v":""},null,null,null,null,null,null,null,null,null,null,null,null,null,null,null,"",null,null,0,0,0,0,0,0,0,0]
[null,{"$f":"IFERROR(VLOOKUP(A243,Base!$C$2:$D$3,2,0),\"\")","v":""},null,null,null,null,null,null,null,null,null,null,null,null,null,null,null,"",null,null,0,0,0,0,0,0,0,0]
[null,{"$f":"IFERROR(VLOOKUP(A244,Base!$C$2:$D$3,2,0),\"\")","v":""},null,null,null,null,null,null,null,null,null,null,null,null,null,null,null,"",null,null,0,0,0,0,0,0,0,0]
[null,{"$f":"IFERROR(VLOOKUP(A245,Base!$C$2:$D$3,2,0),\"\")","v":""},null,null,null,null,null,null,null,null,null,null,null,null,null,null,null,"",null,null,0,0,0,0,0,0,0,0]
[null,{"$f":"IFERROR(VLOOKUP(A246,Base!$C$2:$D$3,2,0),\"\")","v":""},null,null,null,null,null,null,null,null,null,null,null,null,null,null,null,"",null,null,0,0,0,0,0,0,0,0]
[null,{"$f":"IFERROR(VLOOKUP(A247,Base!$C$2:$D$3,2,0),\"\")","v":""},null,null,null,null,null,null,null,null,null,null,null,null,null,null,null,"",null,null,0,0,0,0,0,0,0,0]
[null,{"$f":"IFERROR(VLOOKUP(A248,Base!$C$2:$D$3,2,0),\"\")","v":""},null,null,null,null,null,null,null,null,null,null,null,null,null,null,null,"",null,null,0,0,0,0,0,0,0,0]
[null,{"$f":"IFERROR(VLOOKUP(A249,Base!$C$2:$D$3,2,0),\"\")","v":""},null,null,null,null,null,null,null,null,null,null,null,null,null,null,null,"",null,null,0,0,0,0,0,0,0,0]
[null,{"$f":"IFERROR(VLOOKUP(A250,Base!$C$2:$D$3,2,0),\"\")","v":""},null,null,null,null,null,null,null,null,null,null,null,null,null,null,null,"",null,null,0,0,0,0,0,0,0,0]

{"sheet":"Base","index":3,"n_rows":249,"n_cols":21,"rows_kept":249,"cut":false,"hidden":true,"merged":[]}
["Periodo",null,"Grupo compañía","Grupo",null,1,"General","1.-Incendio",null,null,"Grupo compañía 1","Rut Grupo 1",null,null,null,"Siniestros Liquidación directa",null,null,"rut","rutsin","nombre"]
["2020-06",null,1,"General",null,1,"General","2.-Pérdida de beneficio por incendio",null,1,"ASEGURADORA PORVENIR S.A.","76598625-7",null,null,"1.-Incendio",{"$f":"+COUNTIF('Siniestros Asignados'!$A$8:$A$251,Base!O2)","v":0},null,null,"10067127-1",100671271,"SILVA LIGUEÑO JUAN MAURICIO"]
["2020-12",null,2,"Vida",null,1,"General","3.-Otros Riesgos adicionales a incendio",null,1,"ASSURANT CHILE COMPAÑIA DE SEGUROS GENERALES S.A.","76212519-6",null,null,"2.-Pérdida de beneficio por incendio",{"$f":"+COUNTIF('Siniestros Asignados'!$A$8:$A$251,Base!O3)","v":0},null,null,"10151232-0",101512320,"VALDÉS GÓMEZ PAOLO ALEJANDRO"]
["2021-06",null,null,null,null,1,"General","4.-Terremoto y Tsunami",null,1,"BCI SEGUROS GENERALES S.A.","99147000-K",null,null,"3.-Otros Riesgos adicionales a incendio",{"$f":"+COUNTIF('Siniestros Asignados'!$A$8:$A$251,Base!O4)","v":0},null,null,"10191670-7",101916707,"MARCHANT BARRIAS JOHN OSVALDO"]
["2021-12",null,null,null,null,1,"General","5.-Pérdida de beneficio por Terremoto",null,1,"BNP PARIBAS CARDIF SEGUROS GENERALES S.A.","96837640-3",null,null,"4.-Terremoto y Tsunami",{"$f":"+COUNTIF('Siniestros Asignados'!$A$8:$A$251,Base!O5)","v":0},null,null,"10273448-3",102734483,"CORREA LABARCA PAULO LUIS"]
["2022-06",null,null,null,null,1,"General","6.-Otros Riesgos de la naturaleza",null,1,"CHUBB SEGUROS CHILE S.A.","99225000-3",null,null,"5.-Pérdida de beneficio por Terremoto",{"$f":"+COUNTIF('Siniestros Asignados'!$A$8:$A$251,Base!O6)","v":0},null,null,"10325420-5",103254205,"DE LA CUADRA CUADRA FRANCISCO JAVIER"]
["2022-12",null,null,null,null,1,"General","7.-Terrorismo",null,1,"COMPAÑIA DE SEGUROS GENERALES CONSORCIO NACIONAL DE SEGUROS S.A.","96654180-6",null,null,"6.-Otros Riesgos de la naturaleza",{"$f":"+COUNTIF('Siniestros Asignados'!$A$8:$A$251,Base!O7)","v":0},null,null,"10350523-2",103505232,"CANALES ESPINOZA EDUARDO ANTONIO"]
["2023-06",null,null,null,null,1,"General","8.-Robo",null,1,"COMPAÑIA DE SEGUROS GENERALES CONTINENTAL S.A.","76039758-K",null,null,"7.-Terrorismo",{"$f":"+COUNTIF('Siniestros Asignados'!$A$8:$A$251,Base!O8)","v":0},null,null,"10400140-8",104001408,"FERREIRA YAÑEZ PAOLA LUISA"]
["2023-12",null,null,null,null,1,"General","9.-Cristales",null,1,"CONTEMPORA COMPAÑIA DE SEGUROS GENERALES S.A.","76981875-8",null,null,"8.-Robo",{"$f":"+COUNTIF('Siniestros Asignados'!$A$8:$A$251,Base!O9)","v":0},null,null,"10488305-2",104883052,"JIMENEZ VALIENTE CARLOS PATRICIO"]
[null,null,null,null,null,1,"General","10.-Daños físicos Vehículos Motorizados",null,1,"EVEREST COMPAÑIA DE SEGUROS GENERALES CHILE S.A.","77591207-3",null,null,"9.-Cristales",{"$f":"+COUNTIF('Siniestros Asignados'!$A$8:$A$251,Base!O10)","v":0},null,null,"10584047-0",105840470,"GOMEZ AEDO GREGORIO ALEJANDRO"]
[null,null,null,null,null,1,"General","11.-Casco Marítimo",null,1,"FID CHILE SEGUROS GENERALES S.A.","77096952-2",null,null,"10.-Daños físicos Vehículos Motorizados",{"$f":"+COUNTIF('Siniestros Asignados'!$A$8:$A$251,Base!O11)","v":0},null,null,"10632507-3",106325073,"ARANCIBIA BUSTAMANTE JUAN MAURICIO"]
["Tipo","Grupo",null,null,null,1,"General","12.-Casco Aéreo",null,1,"HDI SEGUROS S.A.","99231000-6",null,null,"11.-Casco Marítimo",{"$f":"+COUNTIF('Siniestros Asignados'!$A$8:$A$251,Base!O12)","v":0},null,null,"10658174-6",106581746,"PORTILLA ALARCON PABLO CESAR"]
["CSG",1,null,null,null,1,"General","13.-Responsabilidad civil Hogar y Condominios",null,1,"LIBERTY COMPAÑIA DE SEGUROS GENERALES S.A.","99061000-2",null,null,"12.-Casco Aéreo",{"$f":"+COUNTIF('Siniestros Asignados'!$A$8:$A$251,Base!O13)","v":0},null,null,"10696129-8",106961298,"ALARCON BENAVIDES CRISTIAN ENRIQUE"]
["CSC",1,null,null,null,1,"General","14.-Responsabilidad civil Profesional",null,1,"MAPFRE COMPAÑIA DE SEGUROS GENERALES DE CHILE S.A.","96508210-7",null,null,"13.-Responsabilidad civil Hogar y Condominios",{"$f":"+COUNTIF('Siniestros Asignados'!$A$8:$A$251,Base!O14)","v":0},null,null,"10810368-K","10810368K","ZAPATA VALENZUELA FELIPE ANDRÉS"]
["CSV",2,null,null,null,1,"General","15.-Responsabilidad civil Industria, Infraestructura y Comercio",null,1,"METLIFE CHILE SEGUROS GENERALES S.A.","76328793-9",null,null,"14.-Responsabilidad civil Profesional",{"$f":"+COUNTIF('Siniestros Asignados'!$A$8:$A$251,Base!O15)","v":0},null,null,"10835420-8",108354208,"CHUAQUI SCHADOW GABRIEL ALEJANDRO"]
[null,null,null,null,null,1,"General","16.-Responsabilidad civil Vehículos Motorizados",null,1,"MUTUALIDAD DE CARABINEROS (Generales)","99024000-0",null,null,"15.-Responsabilidad civil Industria, Infraestructura y Comercio",{"$f":"+COUNTIF('Siniestros Asignados'!$A$8:$A$251,Base!O16)","v":0},null,null,"10849830-7",108498307,"BURGOS MUÑOZ RAFAEL EUGENIO"]
[null,null,null,null,null,1,"General","17.-Transporte terrestre",null,1,"ORION SEGUROS GENERALES S.A.","76042965-1",null,null,"16.-Responsabilidad civil Vehículos Motorizados",{"$f":"+COUNTIF('Siniestros Asignados'!$A$8:$A$251,Base!O17)","v":0},null,null,"10851547-3",108515473,"MARTICORENA SALINAS JOSE MIGUEL"]
[null,null,null,null,null,1,"General","18.-Transporte Marítimo",null,1,"REALE CHILE SEGUROS GENERALES S.A.","76743492-8",null,null,"17.-Transporte terrestre",{"$f":"+COUNTIF('Siniestros Asignados'!$A$8:$A$251,Base!O18)","v":0},null,null,"10912187-8",109121878,"ALTMANN COBOS FELIPE EDUARDO"]
[null,null,null,null,null,1,"General","19.-Transporte Aéreo",null,1,"RENTA NACIONAL COMPAÑIA DE SEGUROS GENERALES S.A.","94510000-1",null,null,"18.-Transporte Marítimo",{"$f":"+COUNTIF('Siniestros Asignados'!$A$8:$A$251,Base!O19)","v":0},null,null,"10919806-4",109198064,"YAÑEZ GOMEZ JAVIER ORNALDO"]
[null,null,null,null,null,1,"General","20.-Equipo Contratista",null,1,"SEGUROS GENERALES SURAMERICANA S.A.","99017000-2",null,null,"19.-Transporte Aéreo",{"$f":"+COUNTIF('Siniestros Asignados'!$A$8:$A$251,Base!O20)","v":0},null,null,"10962229-K","10962229K","ORELLANA HERNANDEZ SONIA ALEJANDRA"]
[null,null,null,null,null,1,"General","21.-Todo Riesgo Construcción y Montaje",null,1,"SOUTHBRIDGE COMPAÑIA DE SEGUROS GENERALES S.A.","99288000-7",null,null,"20.-Equipo Contratista",{"$f":"+COUNTIF('Siniestros Asignados'!$A$8:$A$251,Base!O21)","v":0},null,null,"10985204-K","10985204K","VERGARA SOTO CRISTIAN RODRIGO"]
[null,null,null,null,null,1,"General","22.-Avería de Maquinaria",null,1,"STARR INTERNATIONAL SEGUROS GENERALES S.A.","76620932-7",null,null,"21.-Todo Riesgo Construcción y Montaje",{"$f":"+COUNTIF('Siniestros Asignados'!$A$8:$A$251,Base!O22)","v":0},null,null,"11140005-9",111400059,"DE BEER SORIANO CARLOS JAVIER"]
[null,null,null,null,null,1,"General","23.-Equipo Eléctrico",null,1,"UNNIO SEGUROS GENERALES S.A.","76173258-7",null,null,"22.-Avería de Maquinaria",{"$f":"+COUNTIF('Siniestros Asignados'!$A$8:$A$251,Base!O23)","v":0},null,null,"11324360-0",113243600,"MARIN BORQUEZ HECTOR HUGO"]
[null,null,null,null,null,1,"General","24.-Garantía",null,1,"ZENIT SEGUROS GENERALES S.A.","76061223-5",null,null,"23.-Equipo Eléctrico",{"$f":"+COUNTIF('Siniestros Asignados'!$A$8:$A$251,Base!O24)","v":0},null,null,"11345916-6",113459166,"GONZALEZ CUEVAS DAVID ALEJANDRO"]
[null,null,null,null,null,1,"General","25.-Fidelidad",null,1,"ZURICH CHILE SEGUROS GENERALES S.A.","99037000-1",null,null,"24.-Garantía",{"$f":"+COUNTIF('Siniestros Asignados'!$A$8:$A$251,Base!O25)","v":0},null,null,"11482367-8",114823678,"ALVAREZ GOMEZ ROBERTO CARLOS"]
[null,null,null,null,null,1,"General","26.-Seguro extensión y Garantía",null,1,"ZURICH SANTANDER SEGUROS GENERALES CHILE S.A.","76590840-K",null,null,"25.-Fidelidad",{"$f":"+COUNTIF('Siniestros Asignados'!$A$8:$A$251,Base!O26)","v":0},null,null,"11676174-2",116761742,"MELLA LABRAÑA MARCELO ANDRES"]
[null,null,null,null,null,1,"General","27.-Seguro de Crédito por venta a plazo",null,1,"AVLA SEGUROS DE CREDITO Y GARANTIA S.A.","76363534-1",null,null,"26.-Seguro extensión y Garantía",{"$f":"+COUNTIF('Siniestros Asignados'!$A$8:$A$251,Base!O27)","v":0},null,null,"11687570-5",116875705,"BARRUETO OAKLEY ALBERTO EDGARDO"]
[null,null,null,null,null,1,"General","28.-Seguro de Crédito a la exportación",null,1,"CESCE CHILE ASEGURADORA S.A.","76015592-6",null,null,"27.-Seguro de Crédito por venta a plazo",{"$f":"+COUNTIF('Siniestros Asignados'!$A$8:$A$251,Base!O28)","v":0},null,null,"11823181-3",118231813,"MOHOR PINTO FAISAL"]
[null,null,null,null,null,1,"General","29.-Otros seguros de crédito",null,1,"COMPAÑIA DE SEGUROS DE CREDITO CONTINENTAL S.A.","96573590-9",null,null,"28.-Seguro de Crédito a la exportación",{"$f":"+COUNTIF('Siniestros Asignados'!$A$8:$A$251,Base!O29)","v":0},null,null,"11911884-0",119118840,"GOMEZ RUIZ MONICA IVONNE"]
[null,null,null,null,null,1,"General","30.-Salud",null,1,"COMPAÑIA DE SEGUROS DE CREDITOS COFACE CHILE S.A.","96831690-7",null,null,"29.-Otros seguros de crédito",{"$f":"+COUNTIF('Siniestros Asignados'!$A$8:$A$251,Base!O30)","v":0},null,null,"12005422-8",120054228,"VERGARA LIRA JOSE FRANCISCO"]
[null,null,null,null,null,1,"General","31.-Accidentes personales",null,1,"ORSAN SEGUROS DE CREDITO Y GARANTIA S.A.","76810563-4",null,null,"30.-Salud",{"$f":"+COUNTIF('Siniestros Asignados'!$A$8:$A$251,Base!O31)","v":0},null,null,"12248923-K","12248923K","VALDÉS RODRÍGUEZ PATRICIO ANDRÉS"]
[null,null,null,null,null,1,"General","32.-Seguro Obligatorio de Accidentes Personales (SOAP)",null,1,"SEGUROS KONSEGUR DE GARANTIAS Y CREDITO S.A.","76844788-8",null,null,"31.-Accidentes personales",{"$f":"+COUNTIF('Siniestros Asignados'!$A$8:$A$251,Base!O32)","v":0},null,null,"12254778-7",122547787,"MORALES MORANDE JUAN CARLOS"]
[null,null,null,null,null,1,"General","33.-Seguro de Cesantía",null,1,"SOLUNION CHILE SEGUROS DE CREDITO S.A.","76094234-0",null,null,"32.-Seguro Obligatorio de Accidentes Personales (SOAP)",{"$f":"+COUNTIF('Siniestros Asignados'!$A$8:$A$251,Base!O33)","v":0},null,null,"12345678-9",123456789,"NOMBRE ENTIDAD"]
[null,null,null,null,null,1,"General","34.-Seguro de Título",null,null,null,null,null,null,"33.-Seguro de Cesantía",{"$f":"+COUNTIF('Siniestros Asignados'!$A$8:$A$251,Base!O34)","v":0},null,null,"12395242-1",123952421,"CISTERNAS VALDIVIA LUIS DESIDERIO"]
[null,null,null,null,null,1,"General","35.-Seguro Agrícola",null,null,null,null,null,null,"34.-Seguro de Título",{"$f":"+COUNTIF('Siniestros Asignados'!$A$8:$A$251,Base!O35)","v":0},null,null,"12448545-2",124485452,"MUÑOZ QUIÑONES LEONARDO ANTONIO"]
[null,null,null,null,null,1,"General","36.-Seguro de Asistencia",null,null,null,null,null,null,"35.-Seguro Agrícola",{"$f":"+COUNTIF('Siniestros Asignados'!$A$8:$A$251,Base!O36)","v":0},null,null,"12455217-6",124552176,"SALCEDO GUZMAN CLAUDIA ALEJANDRA"]
[null,null,null,null,null,1,"General","50.-Otros Seguros",null,2,"4 LIFE SEGUROS DE VIDA S.A.","76418751-2",null,null,"36.-Seguro de Asistencia",{"$f":"+COUNTIF('Siniestros Asignados'!$A$8:$A$251,Base!O37)","v":0},null,null,"12462629-3",124626293,"POBLETE SALAS RODRIGO ANDRES"]
[null,null,null,null,null,2,"Vida","101 - Vida entera",null,2,"ALEMANA SEGUROS S.A.","76511423-3",null,null,"50.-Otros Seguros",{"$f":"+COUNTIF('Siniestros Asignados'!$A$8:$A$251,Base!O38)","v":0},null,null,"12509145-8",125091458,"TAPIA SANCHEZ VIVIANA ISABEL"]
[null,null,null,null,null,2,"Vida","102 - Temporal de vida",null,2,"BCI SEGUROS VIDA S.A.","96573600-K",null,null,"101 - Vida entera",{"$f":"+COUNTIF('Siniestros Asignados'!$A$8:$A$251,Base!O39)","v":0},null,null,"12592859-5",125928595,"BOFILL RECONDO SERGIO GONZALO"]
[null,null,null,null,null,2,"Vida","103 - Seguros con cuenta única de inversión (CUI)",null,2,"BICE VIDA COMPAÑIA DE SEGUROS S.A.","96656410-5",null,null,"102 - Temporal de vida",{"$f":"+COUNTIF('Siniestros Asignados'!$A$8:$A$251,Base!O40)","v":0},null,null,"12660041-0",126600410,"PAREDES ESPINOZA MARCELO IVAN"]
[null,null,null,null,null,2,"Vida","104 - Mixto o dotal",null,2,"BNP PARIBAS CARDIF SEGUROS DE VIDA S.A.","96837630-6",null,null,"103 - Seguros con cuenta única de inversión (CUI)",{"$f":"+COUNTIF('Siniestros Asignados'!$A$8:$A$251,Base!O41)","v":0},null,null,"12721594-4",127215944,"FIERRO GALVEZ OSCAR RODRIGO"]
[null,null,null,null,null,2,"Vida","105 - Rentas privadas  y otras rentas",null,2,"BUPA COMPAÑIA DE SEGUROS DE VIDA S.A.","76282191-5",null,null,"104 - Mixto o dotal",{"$f":"+COUNTIF('Siniestros Asignados'!$A$8:$A$251,Base!O42)","v":0},null,null,"12868950-8",128689508,"REYES BENÍTEZ OCTAVIO ENRIQUE"]
[null,null,null,null,null,2,"Vida","106 - Dotal puro o capital diferido",null,2,"CF SEGUROS DE VIDA S.A.","76477116-8",null,null,"105 - Rentas privadas  y otras rentas",{"$f":"+COUNTIF('Siniestros Asignados'!$A$8:$A$251,Base!O43)","v":0},null,null,"12885077-5",128850775,"ROJAS MUÑOZ CRISTIAN RAUL"]
[null,null,null,null,null,2,"Vida","107 - Protección familiar",null,2,"CHUBB SEGUROS DE VIDA CHILE S.A.","99588060-1",null,null,"106 - Dotal puro o capital diferido",{"$f":"+COUNTIF('Siniestros Asignados'!$A$8:$A$251,Base!O44)","v":0},null,null,"13191650-7",131916507,"CURY PASTENE PATRICIO KAMAL"]
[null,null,null,null,null,2,"Vida","108 - Incapacidad o invalidez",null,2,"CN LIFE, COMPAÑIA DE SEGUROS DE VIDA S.A.","96579280-5",null,null,"107 - Protección familiar",{"$f":"+COUNTIF('Siniestros Asignados'!$A$8:$A$251,Base!O45)","v":0},null,null,"13350287-4",133502874,"LEYTON NUÑEZ PEDRO FELIPE"]
[null,null,null,null,null,2,"Vida","109 - Salud",null,2,"COLMENA COMPAÑIA DE SEGUROS DE VIDA S.A.","76408757-7",null,null,"108 - Incapacidad o invalidez",{"$f":"+COUNTIF('Siniestros Asignados'!$A$8:$A$251,Base!O46)","v":0},null,null,"13410544-5",134105445,"HOLMBERG BARRA JORGE ANDRÉS"]
[null,null,null,null,null,2,"Vida","110 - Accidentes personales",null,2,"COMPAÑIA DE SEGUROS CONFUTURO S.A.","96571890-7",null,null,"109 - Salud",{"$f":"+COUNTIF('Siniestros Asignados'!$A$8:$A$251,Base!O47)","v":0},null,null,"13509220-7",135092207,"SANDOVAL BRAVO CARLOS OCTAVIO"]
[null,null,null,null,null,2,"Vida","111 - Asistencia",null,2,"COMPAÑIA DE SEGUROS DE VIDA CAMARA S.A.","99003000-6",null,null,"110 - Accidentes personales",{"$f":"+COUNTIF('Siniestros Asignados'!$A$8:$A$251,Base!O48)","v":0},null,null,"13704740-3",137047403,"GONZALEZ BARRAMUÑO JUAN CARLOS"]
[null,null,null,null,null,2,"Vida","112 - Desgravamen hipotecario",null,2,"COMPAÑIA DE SEGUROS DE VIDA CONSORCIO NACIONAL DE SEGUROS S.A.","99012000-5",null,null,"111 - Asistencia",{"$f":"+COUNTIF('Siniestros Asignados'!$A$8:$A$251,Base!O49)","v":0},null,null,"13882828-K","13882828K","TARRES MEYER FRANCISCO ENRIQUE"]
[null,null,null,null,null,2,"Vida","113 - Desgravamen consumos y otros",null,2,"DIVINA PASTORA SEGUROS DE VIDA S.A.","77205281-2",null,null,"112 - Desgravamen hipotecario",{"$f":"+COUNTIF('Siniestros Asignados'!$A$8:$A$251,Base!O50)","v":0},null,null,"13884029-8",138840298,"CONTRERAS OLAVE HÉCTOR RODRIGO"]
[null,null,null,null,null,2,"Vida","114 - SOAP",null,2,"EUROAMERICA SEGUROS DE VIDA S.A.","99279000-8",null,null,"113 - Desgravamen consumos y otros",{"$f":"+COUNTIF('Siniestros Asignados'!$A$8:$A$251,Base!O51)","v":0},null,null,"13906205-1",139062051,"JARA VALDERRAMA FERNANDO"]
[null,null,null,null,null,2,"Vida","150 - Otros",null,2,"HELP SEGUROS DE VIDA S.A.","76213329-6",null,null,"114 - SOAP",{"$f":"+COUNTIF('Siniestros Asignados'!$A$8:$A$251,Base!O52)","v":0},null,null,"13907069-0",139070690,"AWAD GIAVERINI ANGELO YAMIL"]
[null,null,null,null,null,2,"Vida","201 - Vida entera",null,2,"MAPFRE COMPAÑIA DE SEGUROS DE VIDA DE CHILE S.A.","96933030-K",null,null,"150 - Otros",{"$f":"+COUNTIF('Siniestros Asignados'!$A$8:$A$251,Base!O53)","v":0},null,null,"13943632-6",13943632,"MIÑO CATALÁN DANTE ESTEBAN"]
[null,null,null,null,null,2,"Vida","202 - Temporal de vida",null,2,"METLIFE CHILE SEGUROS DE VIDA S.A.","99289000-2",null,null,"201 - Vida entera",{"$f":"+COUNTIF('Siniestros Asignados'!$A$8:$A$251,Base!O54)","v":0},null,null,"14427141-6",144271416,"COMPER RIZO LUIGINA"]
[null,null,null,null,null,2,"Vida","203 - Seguros con cuenta única de inversión (CUI)",null,2,"MUTUAL DE SEGUROS DE CHILE","70015730-K",null,null,"202 - Temporal de vida",{"$f":"+COUNTIF('Siniestros Asignados'!$A$8:$A$251,Base!O55)","v":0},null,null,"14441095-5",144410955,"LANDIVAR VALDIVIA ALFREDO"]
[null,null,null,null,null,2,"Vida","204 - Mixto o dotal",null,2,"MUTUALIDAD DE CARABINEROS (Vida)","99024000-0",null,null,"203 - Seguros con cuenta única de inversión (CUI)",{"$f":"+COUNTIF('Siniestros Asignados'!$A$8:$A$251,Base!O56)","v":0},null,null,"14441096-3",144410963,"LANDIVAR SUAREZ ALFREDO GERARDO"]
[null,null,null,null,null,2,"Vida","205 - Rentas privadas  y otras rentas",null,2,"MUTUALIDAD DEL EJERCITO Y AVIACION","99025000-6",null,null,"204 - Mixto o dotal",{"$f":"+COUNTIF('Siniestros Asignados'!$A$8:$A$251,Base!O57)","v":0},null,null,"14578638-K","14578638K","BEST CLEMENS MARIA"]
[null,null,null,null,null,2,"Vida","206 - Dotal puro o capital diferido",null,2,"OHIO NATIONAL SEGUROS DE VIDA S.A.","96687900-9",null,null,"205 - Rentas privadas  y otras rentas",{"$f":"+COUNTIF('Siniestros Asignados'!$A$8:$A$251,Base!O58)","v":0},null,null,"14582637-3",145826373,"LOPEZ VASQUEZ FRANCISCO JAVIER"]
[null,null,null,null,null,2,"Vida","207 - Protección familiar",null,2,"PENTA VIDA COMPAÑIA DE SEGUROS DE VIDA S.A.","96812960-0",null,null,"206 - Dotal puro o capital diferido",{"$f":"+COUNTIF('Siniestros Asignados'!$A$8:$A$251,Base!O59)","v":0},null,null,"15356088-9",153560889,"SALGADO SILVA ODETTE MARGARITA"]
[null,null,null,null,null,2,"Vida","208 - Incapacidad o invalidez",null,2,"PRINCIPAL COMPAÑIA DE SEGUROS DE VIDA CHILE S.A.","96588080-1",null,null,"207 - Protección familiar",{"$f":"+COUNTIF('Siniestros Asignados'!$A$8:$A$251,Base!O60)","v":0},null,null,"15401081-5",154010815,"HANANIAS CASTILLO RODRIGO SCANDAR"]
[null,null,null,null,null,2,"Vida","209 - Salud",null,2,"RENTA NACIONAL COMPAÑIA DE SEGUROS DE VIDA S.A.","94716000-1",null,null,"208 - Incapacidad o invalidez",{"$f":"+COUNTIF('Siniestros Asignados'!$A$8:$A$251,Base!O61)","v":0},null,null,"15648597-7",156485977,"NORAMBUENA CONEJEROS CRISTIAN HERNÁN"]
[null,null,null,null,null,2,"Vida","210 - Accidentes personales",null,2,"SAVE BCJ COMPAÑIA DE SEGUROS DE VIDA S.A.","76034737-K",null,null,"209 - Salud",{"$f":"+COUNTIF('Siniestros Asignados'!$A$8:$A$251,Base!O62)","v":0},null,null,"15997110-4",159971104,"NIERAAD NAIMAN ALFONSO ALEJANDRO"]
[null,null,null,null,null,2,"Vida","211 - Asistencia",null,2,"SEGUROS CLC S.A.","76573480-0",null,null,"210 - Accidentes personales",{"$f":"+COUNTIF('Siniestros Asignados'!$A$8:$A$251,Base!O63)","v":0},null,null,"16887310-7",168873107,"ROMAN GOMEZ RODRIGO ANDRE"]
[null,null,null,null,null,2,"Vida","212 - Desgravamen hipotecario",null,2,"SEGUROS DE VIDA SURA S.A.","96549050-7",null,null,"211 - Asistencia",{"$f":"+COUNTIF('Siniestros Asignados'!$A$8:$A$251,Base!O64)","v":0},null,null,"23553149-6",235531496,"FONDERE LUZON HUGO JAVIER"]
[null,null,null,null,null,2,"Vida","213 - Desgravamen consumos y otros",null,2,"SEGUROS DE VIDA SURAMERICANA S.A.","76263414-7",null,null,"212 - Desgravamen hipotecario",{"$f":"+COUNTIF('Siniestros Asignados'!$A$8:$A$251,Base!O65)","v":0},null,null,"25409306-8",254093068,"CASTILLO PULIDOR CESAR GUILLERMO"]
[null,null,null,null,null,2,"Vida","214 - SOAP",null,2,"SEGUROS VIDA SECURITY PREVISION S.A.","99301000-6",null,null,"213 - Desgravamen consumos y otros",{"$f":"+COUNTIF('Siniestros Asignados'!$A$8:$A$251,Base!O66)","v":0},null,null,"2597745-9",25977459,"VIOLLER LARRAIN LUIS EDUARDO"]
[null,null,null,null,null,2,"Vida","250 - Otros",null,2,"ZURICH CHILE SEGUROS DE VIDA S.A.","99185000-7",null,null,"214 - SOAP",{"$f":"+COUNTIF('Siniestros Asignados'!$A$8:$A$251,Base!O67)","v":0},null,null,"3978612-5",39786125,"ATUCHA CUIÑAS ALBERTO"]
[null,null,null,null,null,2,"Vida","301 - Vida entera",null,2,"ZURICH SANTANDER SEGUROS DE VIDA CHILE S.A.","96819630-8",null,null,"250 - Otros",{"$f":"+COUNTIF('Siniestros Asignados'!$A$8:$A$251,Base!O68)","v":0},null,null,"4015985-1",40159851,"CARTER CARREÑO ALEJANDRO EMILIO"]
[null,null,null,null,null,2,"Vida","302 - Temporal de vida",null,null,null,null,null,null,"301 - Vida entera",{"$f":"+COUNTIF('Siniestros Asignados'!$A$8:$A$251,Base!O69)","v":0},null,null,"4364116-6",43641166,"CRUZ BARRIGA SERGIO CARLOS"]
[null,null,null,null,null,2,"Vida","303 - Seguros con cuenta única de inversión (CUI)",null,null,null,null,null,null,"302 - Temporal de vida",{"$f":"+COUNTIF('Siniestros Asignados'!$A$8:$A$251,Base!O70)","v":0},null,null,"4468280-K","4468280K","PAREDES FLORES ROGELIO EUGENIO"]
[null,null,null,null,null,2,"Vida","304 - Mixto o dotal",null,null,null,null,null,null,"303 - Seguros con cuenta única de inversión (CUI)",{"$f":"+COUNTIF('Siniestros Asignados'!$A$8:$A$251,Base!O71)","v":0},null,null,"4515688-5",45156885,"GUAJARDO GUZMAN LUIS ARTURO"]
[null,null,null,null,null,2,"Vida","305 - Rentas privadas  y otras rentas",null,null,null,null,null,null,"304 - Mixto o dotal",{"$f":"+COUNTIF('Siniestros Asignados'!$A$8:$A$251,Base!O72)","v":0},null,null,"4665258-4",46652584,"BARRIENTOS ROA HERNAN EDUARDO"]
[null,null,null,null,null,2,"Vida","306 - Dotal puro o capital diferido",null,null,null,null,null,null,"305 - Rentas privadas  y otras rentas",{"$f":"+COUNTIF('Siniestros Asignados'!$A$8:$A$251,Base!O73)","v":0},null,null,"4772904-1",47729041,"RISOPATRON VERGARA JAIME PANCRACIO"]
[null,null,null,null,null,2,"Vida","307 - Protección familiar",null,null,null,null,null,null,"306 - Dotal puro o capital diferido",{"$f":"+COUNTIF('Siniestros Asignados'!$A$8:$A$251,Base!O74)","v":0},null,null,"4945025-7",49450257,"RIVEROS OVALLE LUIS RENATO ÁLVARO"]
[null,null,null,null,null,2,"Vida","308 - Incapacidad o invalidez",null,null,null,null,null,null,"307 - Protección familiar",{"$f":"+COUNTIF('Siniestros Asignados'!$A$8:$A$251,Base!O75)","v":0},null,null,"5076294-7",50762947,"PIZARRO CONCHA DOMINGO ROLANDO"]
[null,null,null,null,null,2,"Vida","309 - Salud",null,null,null,null,null,null,"308 - Incapacidad o invalidez",{"$f":"+COUNTIF('Siniestros Asignados'!$A$8:$A$251,Base!O76)","v":0},null,null,"52005227-5",520052275,"JOSE BERVA CARAFI LIQUIDADOR DE SINIESTROS E.I.R.L."]
[null,null,null,null,null,2,"Vida","310 - Accidentes personales",null,null,null,null,null,null,"309 - Salud",{"$f":"+COUNTIF('Siniestros Asignados'!$A$8:$A$251,Base!O77)","v":0},null,null,"5230739-2",52307392,"MAGAÑA CABEZAS RUBEN PATRICIO"]
[null,null,null,null,null,2,"Vida","311 - Asistencia",null,null,null,null,null,null,"310 - Accidentes personales",{"$f":"+COUNTIF('Siniestros Asignados'!$A$8:$A$251,Base!O78)","v":0},null,null,"5255243-5",52552435,"CARREON ARROYO CARLOS RODRIGO"]
[null,null,null,null,null,2,"Vida","312 - Desgravamen hipotecario",null,null,null,null,null,null,"311 - Asistencia",{"$f":"+COUNTIF('Siniestros Asignados'!$A$8:$A$251,Base!O79)","v":0},null,null,"5286387-2",52863872,"MUGURUZA INFANTE RAMON DE JESUS"]
[null,null,null,null,null,2,"Vida","313 - Desgravamen consumos y otros",null,null,null,null,null,null,"312 - Desgravamen hipotecario",{"$f":"+COUNTIF('Siniestros Asignados'!$A$8:$A$251,Base!O80)","v":0},null,null,"5335466-1",53354661,"VERGARA MORENO AURELIO SEGUNDO"]
[null,null,null,null,null,2,"Vida","314 - SOAP",null,null,null,null,null,null,"313 - Desgravamen consumos y otros",{"$f":"+COUNTIF('Siniestros Asignados'!$A$8:$A$251,Base!O81)","v":0},null,null,"5401834-7",54018347,"DE LA HORRA CORREA PATRICIO ENRIQUE"]
[null,null,null,null,null,2,"Vida","350 - Otros",null,null,null,null,null,null,"314 - SOAP",{"$f":"+COUNTIF('Siniestros Asignados'!$A$8:$A$251,Base!O82)","v":0},null,null,"5409959-2",54099592,"OLIVA CAMADRO OSCAR DAGOBERTO"]
[null,null,null,null,null,2,"Vida","420 - Seguro invalidez y sobrevivencia (SIS)",null,null,null,null,null,null,"350 - Otros",{"$f":"+COUNTIF('Siniestros Asignados'!$A$8:$A$251,Base!O83)","v":0},null,null,"5479658-7",54796587,"RIVERA FREDES VICTORIANO"]
[null,null,null,null,null,2,"Vida","421 - Renta vitalicia vejez",null,null,null,null,null,null,"420 - Seguro invalidez y sobrevivencia (SIS)",{"$f":"+COUNTIF('Siniestros Asignados'!$A$8:$A$251,Base!O84)","v":0},null,null,"5544374-2",55443742,"CONTADOR PEREZ JUAN ARTURO"]
[null,null,null,null,null,2,"Vida","422 - Renta vitalicia invalidez",null,null,null,null,null,null,"421 - Renta vitalicia vejez",{"$f":"+COUNTIF('Siniestros Asignados'!$A$8:$A$251,Base!O85)","v":0},null,null,"5567825-1",55678251,"LANDAIDA LANDEROS JUAN ADOLFO"]
[null,null,null,null,null,2,"Vida","423 - Renta vitalicia de sobrevivencia",null,null,null,null,null,null,"422 - Renta vitalicia invalidez",{"$f":"+COUNTIF('Siniestros Asignados'!$A$8:$A$251,Base!O86)","v":0},null,null,"5586823-9",55868239,"SAAVEDRA URIZAR VICTOR ALBERTO"]
[null,null,null,null,null,2,"Vida","424 - Invalidez y sobrevivencia (C-528)",null,null,null,null,null,null,"423 - Renta vitalicia de sobrevivencia",{"$f":"+COUNTIF('Siniestros Asignados'!$A$8:$A$251,Base!O87)","v":0},null,null,"5611671-0",56116710,"SAEZ SANHUEZA LUIS ANTONIO"]
[null,null,null,null,null,2,"Vida","425 - Seguro con ahorro previsional (APV)",null,null,null,null,null,null,"424 - Invalidez y sobrevivencia (C-528)",{"$f":"+COUNTIF('Siniestros Asignados'!$A$8:$A$251,Base!O88)","v":0},null,null,"5665556-5",56655565,"DE LA CUADRA TAGLE PATRICIO ELIAS"]
[null,null,null,null,null,2,"Vida","426 - Seguro con Previsional Colectivo (APVC)",null,null,null,null,null,null,"425 - Seguro con ahorro previsional (APV)",{"$f":"+COUNTIF('Siniestros Asignados'!$A$8:$A$251,Base!O89)","v":0},null,null,"5711650-1",57116501,"SALAZAR SWETT GONZALO RICARDO"]
[null,null,null,null,null,null,null,null,null,null,null,null,null,null,"426 - Seguro con Previsional Colectivo (APVC)",{"$f":"+COUNTIF('Siniestros Asignados'!$A$8:$A$251,Base!O90)","v":0},null,null,"5817047-K","5817047K","RIVAL DUMENEZ GUSTAVO BORIS"]
[null,null,null,null,null,null,null,null,null,null,null,null,null,null,null,null,null,null,"5817927-2",58179272,"MEDINA SEPULVEDA MARIO ENRIQUE"]
[null,null,null,null,null,null,null,null,null,null,null,null,null,null,null,null,null,null,"6009584-1",60095841,"VARGAS SOTO RODRIGO ALEJANDRO"]
[null,null,null,null,null,null,null,null,null,null,null,null,null,null,null,null,null,null,"6061141-6",60611416,"CONTRERAS COFRE ARTURO JAVIER"]
[null,null,null,null,null,null,null,null,null,null,null,null,null,null,null,null,null,null,"6061166-1",60611661,"SILVA DIBARRART PEDRO PABLO"]
[null,null,null,null,null,null,null,null,null,null,null,null,null,null,null,null,null,null,"6062613-8",60626138,"VOLLMER GARCIA OSCAR FERNANDO"]
[null,null,null,null,null,null,null,null,null,null,null,null,null,null,null,null,null,null,"6200579-3",62005793,"ATENAS CORTES JOSE ERNESTO"]
[null,null,null,null,null,null,null,null,null,null,null,null,null,null,null,null,null,null,"6206287-8",62062878,"DIAZ BARROS RAMON LUCIO"]
[null,null,null,null,null,null,null,null,null,null,null,null,null,null,null,null,null,null,"6278432-6",62784326,"HARDY NORTON PATRICK JOHN"]
[null,null,null,null,null,null,null,null,null,null,null,null,null,null,null,null,null,null,"6284937-1",62849371,"GOÑI GARRIDO CARLOS MANUEL"]
[null,null,null,null,null,null,null,null,null,null,null,null,null,null,null,null,null,null,"6370145-9",63701459,"AWAD RIVAS RICARDO EMILIO"]
[null,null,null,null,null,null,null,null,null,null,null,null,null,null,null,null,null,null,"6383968-K","6383968K","BARROS ACUÑA CRISTIAN AMBROSIO"]
[null,null,null,null,null,null,null,null,null,null,null,null,null,null,null,null,null,null,"6390248-9",63902489,"BARRIOS VALDES HECTOR ROBERTO"]
[null,null,null,null,null,null,null,null,null,null,null,null,null,null,null,null,null,null,"6455999-0",64559990,"LAFUENTES GIGOUX OSCAR HUGO"]
[null,null,null,null,null,null,null,null,null,null,null,null,null,null,null,null,null,null,"6594996-2",65949962,"CAMPINO EDWARDS PABLO ANDRES"]
[null,null,null,null,null,null,null,null,null,null,null,null,null,null,null,null,null,null,"6621878-3",66218783,"VARGAS INOSTROZA VICTOR HUGO"]
[null,null,null,null,null,null,null,null,null,null,null,null,null,null,null,null,null,null,"6657386-9",66573869,"VILLARROEL VILLARROEL MIGUEL ANGEL"]
[null,null,null,null,null,null,null,null,null,null,null,null,null,null,null,null,null,null,"6668302-8",66683028,"CARVALLO PARDO JAVIER ALBERTO"]
[null,null,null,null,null,null,null,null,null,null,null,null,null,null,null,null,null,null,"6890074-3",68900743,"VIOLLIER VIAL EDUARDO"]
[null,null,null,null,null,null,null,null,null,null,null,null,null,null,null,null,null,null,"6916945-7",69169457,"MALDONADO MUÑOZ GUILLERMO JOSELIN"]
[null,null,null,null,null,null,null,null,null,null,null,null,null,null,null,null,null,null,"7003778-5",70037785,"BRAVO GUARELLO CARLOS EDUARDO"]
[null,null,null,null,null,null,null,null,null,null,null,null,null,null,null,null,null,null,"7018639-K","7018639K","VALDIVIESO FERNANDEZ JUAN PABLO"]
[null,null,null,null,null,null,null,null,null,null,null,null,null,null,null,null,null,null,"7024081-5",70240815,"DUHALDE BEDDIG JUAN PABLO"]
[null,null,null,null,null,null,null,null,null,null,null,null,null,null,null,null,null,null,"7044195-0",70441950,"ORTEGA PALACIOS FE LORENA"]
[null,null,null,null,null,null,null,null,null,null,null,null,null,null,null,null,null,null,"7079839-5",70798395,"AMUNATEGUI OSSA PABLO LEONIDAS"]
[null,null,null,null,null,null,null,null,null,null,null,null,null,null,null,null,null,null,"7095842-2",70958422,"LOPEZ PEREIRA PATRICIO CLAUDIO"]
[null,null,null,null,null,null,null,null,null,null,null,null,null,null,null,null,null,null,"7108372-1",71083721,"PALACIOS CONTRERAS CIRO ANTONIO"]
[null,null,null,null,null,null,null,null,null,null,null,null,null,null,null,null,null,null,"7159543-9",71595439,"JARA PEREZ FERNANDO ANTONIO"]
[null,null,null,null,null,null,null,null,null,null,null,null,null,null,null,null,null,null,"7175176-7",71751767,"LAGNIEL SALAS FLAVIO MARCO"]
[null,null,null,null,null,null,null,null,null,null,null,null,null,null,null,null,null,null,"7203742-1",72037421,"CELEDON MIMICA JUAN RAMON"]
[null,null,null,null,null,null,null,null,null,null,null,null,null,null,null,null,null,null,"7233109-5",72331095,"BUSTAMANTE NAVARRO PATRICIO ENRIQUE"]
[null,null,null,null,null,null,null,null,null,null,null,null,null,null,null,null,null,null,"7261937-4",72619374,"AGUIRRE ORTIZ DENNIS GERARDO"]
[null,null,null,null,null,null,null,null,null,null,null,null,null,null,null,null,null,null,"7313321-1",73133211,"BAEZA LOPEZ LILIANA INES"]
[null,null,null,null,null,null,null,null,null,null,null,null,null,null,null,null,null,null,"7315677-7",73156777,"ROTELLA MACCHIAVELLO ARNALDO ROBERTO"]
[null,null,null,null,null,null,null,null,null,null,null,null,null,null,null,null,null,null,"7423079-2",74230792,"SAN MARTIN ARAYA EINAR CLAUDIO"]
[null,null,null,null,null,null,null,null,null,null,null,null,null,null,null,null,null,null,"7423178-0",74231780,"CARDENAS VASQUEZ MAXIMO ROLANDO"]
[null,null,null,null,null,null,null,null,null,null,null,null,null,null,null,null,null,null,"7442464-3",74424643,"ADASME RUIZ-TAGLE JUAN PAULO"]
[null,null,null,null,null,null,null,null,null,null,null,null,null,null,null,null,null,null,"7446258-8",74462588,"LEIVA TORO DANIEL HERNAN"]
[null,null,null,null,null,null,null,null,null,null,null,null,null,null,null,null,null,null,"7461704-2",74617042,"VILLARROEL LEVITUREO JUAN ANDRES"]
[null,null,null,null,null,null,null,null,null,null,null,null,null,null,null,null,null,null,"7524524-6",75245246,"SOTO MARIN BENJAMIN GUSTAVO"]
[null,null,null,null,null,null,null,null,null,null,null,null,null,null,null,null,null,null,"76005895-5",760058955,"LARRAÑAGA LIQUIDADORES Y COMPAÑIA SPA"]
[null,null,null,null,null,null,null,null,null,null,null,null,null,null,null,null,null,null,"76023194-0",760231940,"M PRO LIQUIDADORA DE SEGUROS LIMITADA"]
[null,null,null,null,null,null,null,null,null,null,null,null,null,null,null,null,null,null,"76059290-0",760592900,"TRIVAL AJUSTADORES OFICIALES DE SEGUROS LIMITADA"]
[null,null,null,null,null,null,null,null,null,null,null,null,null,null,null,null,null,null,"76089044-8",760890448,"ADDVALORA GLOBAL LOSS ADJUSTERS CHILE SPA"]
[null,null,null,null,null,null,null,null,null,null,null,null,null,null,null,null,null,null,"76099194-5",760991945,"ARC AJUSTADORES LIMITADA"]
[null,null,null,null,null,null,null,null,null,null,null,null,null,null,null,null,null,null,"76109571-4",761095714,"NUEVA ERA AJUSTADORES LIQUIDADORA DE SEGUROS LIMITADA"]
[null,null,null,null,null,null,null,null,null,null,null,null,null,null,null,null,null,null,"76122083-7",761220837,"SOCIEDAD LIQUIDADORA DE SINIESTROS S&F LIMITADA"]
[null,null,null,null,null,null,null,null,null,null,null,null,null,null,null,null,null,null,"76125434-0",761254340,"RTS CHILE INTERNATIONAL LOSS ADJUSTERS SPA"]
[null,null,null,null,null,null,null,null,null,null,null,null,null,null,null,null,null,null,"76134797-7",761347977,"JUAN PABLO DUHALDE BEDDIG LIQUIDADORES INTERNACIONALES LIMIT"]
[null,null,null,null,null,null,null,null,null,null,null,null,null,null,null,null,null,null,"76154337-7",761543377,"EDIAZ Y ASOCIADOS AJUSTADORES LIMITADA"]
[null,null,null,null,null,null,null,null,null,null,null,null,null,null,null,null,null,null,"76157357-8",761573578,"E.G.A. GROUP LIQUIDADORES DE SEGUROS LIMITADA"]
[null,null,null,null,null,null,null,null,null,null,null,null,null,null,null,null,null,null,"76159472-9",761594729,"WAISMAN & WAISMAN LIMITADA"]
[null,null,null,null,null,null,null,null,null,null,null,null,null,null,null,null,null,null,"76163225-6",761632256,"MADRIGAL SWAIN LIQUIDADORES DE SEGUROS SPA"]
[null,null,null,null,null,null,null,null,null,null,null,null,null,null,null,null,null,null,"76163401-1",761634011,"CFS Y ASOCIADOS LIQUIDADORES DE SEGUROS SOCIEDAD ANONIMA"]
[null,null,null,null,null,null,null,null,null,null,null,null,null,null,null,null,null,null,"76171561-5",761715615,"ACC AJUSTADORES DE SEGUROS LIMITADA"]
[null,null,null,null,null,null,null,null,null,null,null,null,null,null,null,null,null,null,"76174388-0",761743880,"ALDO ROMERO URRUTIA LIQUIDADOR DE SEGUROS E.I.R.L."]
[null,null,null,null,null,null,null,null,null,null,null,null,null,null,null,null,null,null,"76193993-9",761939939,"CORREA Y SILVA LIQUIDADORES DE SEGUROS LIMITADA"]
[null,null,null,null,null,null,null,null,null,null,null,null,null,null,null,null,null,null,"76230237-3",762302373,"FGR-HANNA LIMITADA"]
[null,null,null,null,null,null,null,null,null,null,null,null,null,null,null,null,null,null,"76250635-1",762506351,"RED LIQUIDADORES DE SEGUROS LIMITADA"]
[null,null,null,null,null,null,null,null,null,null,null,null,null,null,null,null,null,null,"76254156-4",762541564,"LEONARDO MUÑOZ QUIÑONES LIQUIDADOR OFICIAL DE SEGUROS EMPRESA INDIVIDUAL DE RESPONSABILIDAD LIMITADA"]
[null,null,null,null,null,null,null,null,null,null,null,null,null,null,null,null,null,null,"76269703-3",762697033,"A PLUS AJUSTADORES SPA"]
[null,null,null,null,null,null,null,null,null,null,null,null,null,null,null,null,null,null,"76273096-0",762730960,"MONTT LIQUIDADORES DE SEGUROS LIMITADA"]
[null,null,null,null,null,null,null,null,null,null,null,null,null,null,null,null,null,null,"76318142-1",763181421,"PAREDES LIQUIDADORES DE SEGUROS LIMITADA"]
[null,null,null,null,null,null,null,null,null,null,null,null,null,null,null,null,null,null,"76328771-8",763287718,"PEDRO ZEGERS Y COMPAÑIA LIMITADA"]
[null,null,null,null,null,null,null,null,null,null,null,null,null,null,null,null,null,null,"76339369-0",763393690,"RED AJUSTADORES DE SINIESTROS SPA"]
[null,null,null,null,null,null,null,null,null,null,null,null,null,null,null,null,null,null,"76356431-2",763564312,"JGZ AJUSTADORES LIMITADA"]
[null,null,null,null,null,null,null,null,null,null,null,null,null,null,null,null,null,null,"76374547-3",763745473,"LIQUIDADORES DE SEGUROS PABLO SEBASTIAN URRUTIA LIZAMA E.I.R.L."]
[null,null,null,null,null,null,null,null,null,null,null,null,null,null,null,null,null,null,"76397619-K","76397619K","ESTUDIO DE LIQUIDADORES CRUZ DEL SUR SPA"]
[null,null,null,null,null,null,null,null,null,null,null,null,null,null,null,null,null,null,"76430866-2",764308662,"ZIEL LIQUIDADORES DE SEGUROS LIMITADA"]
[null,null,null,null,null,null,null,null,null,null,null,null,null,null,null,null,null,null,"76445481-2",764454812,"H. ESPINA Y ASOCIADOS SPA"]
[null,null,null,null,null,null,null,null,null,null,null,null,null,null,null,null,null,null,"76450400-3",764504003,"LIQUIDADORES DE SEGUROS EN RED CARVALLO LIMITADA"]
[null,null,null,null,null,null,null,null,null,null,null,null,null,null,null,null,null,null,"76455624-0",764556240,"CARLOS SANDOVAL BRAVO LIQUIDADORES E.I.R.L."]
[null,null,null,null,null,null,null,null,null,null,null,null,null,null,null,null,null,null,"76478730-7",764787307,"SGC LINEAS PERSONALES - MASIVOS SOCIEDAD ANONIMA"]
[null,null,null,null,null,null,null,null,null,null,null,null,null,null,null,null,null,null,"76495515-3",764955153,"PROBITAS LIQUIDADORES OFICIALES DE SEGUROS LIMITADA"]
[null,null,null,null,null,null,null,null,null,null,null,null,null,null,null,null,null,null,"76522677-5",765226775,"LIQUIDADORES OFICIALES DE SEGUROS Y SINIESTROS LIMITADA"]
[null,null,null,null,null,null,null,null,null,null,null,null,null,null,null,null,null,null,"76547399-3",765473993,"AUXILIA CLUB ASISTENCIA LIQUIDADORES DE SEGUROS SPA"]
[null,null,null,null,null,null,null,null,null,null,null,null,null,null,null,null,null,null,"76568770-5",765687705,"MVV, ABOGADOS Y LIQUIDADORES LIMITADA"]
[null,null,null,null,null,null,null,null,null,null,null,null,null,null,null,null,null,null,"76592236-4",765922364,"QUALYTAS LIQUIDADORES DE SEGUROS SPA"]
[null,null,null,null,null,null,null,null,null,null,null,null,null,null,null,null,null,null,"76619328-5",766193285,"COURDURIER, HUBE Y COMPAÑIA LIMITADA"]
[null,null,null,null,null,null,null,null,null,null,null,null,null,null,null,null,null,null,"76629340-9",766293409,"MARIO ARTIGUES LIQUIDADORES DE SEGUROS LIMITADA"]
[null,null,null,null,null,null,null,null,null,null,null,null,null,null,null,null,null,null,"76663768-K","76663768K","ATD LIQUIDADORES SPA"]
[null,null,null,null,null,null,null,null,null,null,null,null,null,null,null,null,null,null,"76763605-9",767636059,"LT ASOCIADOS LIQUIDADORES DE SEGUROS LIMITADA"]
[null,null,null,null,null,null,null,null,null,null,null,null,null,null,null,null,null,null,"76825268-8",768252688,"BUSINESS PRO AJUSTADORES SPA"]
[null,null,null,null,null,null,null,null,null,null,null,null,null,null,null,null,null,null,"76938101-5",769381015,"HERNANDEZ Y ASOCIADOS AJUSTADORES LIMITADA"]
[null,null,null,null,null,null,null,null,null,null,null,null,null,null,null,null,null,null,"76939559-8",769395598,"PMC GROUP AJUSTADORES DE SEGUROS LIMITADA"]
[null,null,null,null,null,null,null,null,null,null,null,null,null,null,null,null,null,null,"76974770-2",769747702,"TRONCOSO & ASOCIADOS LIQUIDADORES DE SINIESTROS S.A."]
[null,null,null,null,null,null,null,null,null,null,null,null,null,null,null,null,null,null,"77017143-1",770171431,"LIQUIDADORA DE SEGUROS VERITEC SPA"]
[null,null,null,null,null,null,null,null,null,null,null,null,null,null,null,null,null,null,"77035807-8",770358078,"ABACO CHILE LIQUIDADORES DE SEGUROS SPA"]
[null,null,null,null,null,null,null,null,null,null,null,null,null,null,null,null,null,null,"77061948-3",770619483,"ESTUDIO F MOHOR CHILE SPA"]
[null,null,null,null,null,null,null,null,null,null,null,null,null,null,null,null,null,null,"77112986-2",771129862,"JCR LIQUIDADORES SPA"]
[null,null,null,null,null,null,null,null,null,null,null,null,null,null,null,null,null,null,"77125526-4",771255264,"BARBUSS LIQUIDADORES OFICIALES DE SEGUROS LIMITADA"]
[null,null,null,null,null,null,null,null,null,null,null,null,null,null,null,null,null,null,"77175298-5",771752985,"TRUBERT SPA"]
[null,null,null,null,null,null,null,null,null,null,null,null,null,null,null,null,null,null,"77249830-6",772498306,"AJUSTADORES PROFESIONALES DE SINIESTROS LIMITADA"]
[null,null,null,null,null,null,null,null,null,null,null,null,null,null,null,null,null,null,"77250330-K","77250330K","CRAWFORD LIQUIDADORES DE SEGUROS LIMITADA"]
[null,null,null,null,null,null,null,null,null,null,null,null,null,null,null,null,null,null,"77250490-K","77250490K","GRAHAM MILLER LIQUIDADORES DE SEGUROS LIMITADA"]
[null,null,null,null,null,null,null,null,null,null,null,null,null,null,null,null,null,null,"77342510-8",773425108,"CARTER Y SAAVEDRA AJUSTADORES LIMITADA"]
[null,null,null,null,null,null,null,null,null,null,null,null,null,null,null,null,null,null,"77382320-0",773823200,"FRANCO SANGUINETTI LIQUIDADORES ASOCIADOS LIMITADA"]
[null,null,null,null,null,null,null,null,null,null,null,null,null,null,null,null,null,null,"77475315-K","77475315K","RYR LIQUIDADORES DE SEGUROS SPA"]
[null,null,null,null,null,null,null,null,null,null,null,null,null,null,null,null,null,null,"77482428-6",774824286,"ARM ADJUSTERS CHILE SPA"]
[null,null,null,null,null,null,null,null,null,null,null,null,null,null,null,null,null,null,"77539884-1",775398841,"BECERRA Y HERNANDEZ LIQUIDADORES OFICIALES SPA"]
[null,null,null,null,null,null,null,null,null,null,null,null,null,null,null,null,null,null,"77610084-6",776100846,"SOLUCIONES GENERALES DE SINIESTROS SPA"]
[null,null,null,null,null,null,null,null,null,null,null,null,null,null,null,null,null,null,"77619200-7",776192007,"MACHARD AJUSTADORES, LIQUIDADORES OFICIALES DE SEGUROS LTDA."]
[null,null,null,null,null,null,null,null,null,null,null,null,null,null,null,null,null,null,"7777916-7",77779167,"ALONSO ZUÑIGA CARLOS FELIPE"]
[null,null,null,null,null,null,null,null,null,null,null,null,null,null,null,null,null,null,"77911680-8",779116808,"CAVE LIQUIDADORES DE SEGUROS LIMITADA"]
[null,null,null,null,null,null,null,null,null,null,null,null,null,null,null,null,null,null,"78111050-7",781110507,"J.A. CONTADOR Y COMPAÑIA LIMITADA"]
[null,null,null,null,null,null,null,null,null,null,null,null,null,null,null,null,null,null,"7811204-2",78112042,"ROJAS MARTINEZ CLAUDIO ESTEBAN"]
[null,null,null,null,null,null,null,null,null,null,null,null,null,null,null,null,null,null,"78346390-3",783463903,"MCLARENS CHILE (LIQUIDADORES OFICIALES) SPA"]
[null,null,null,null,null,null,null,null,null,null,null,null,null,null,null,null,null,null,"78479350-8",784793508,"LIQUIDADORES DE SEGUROS SOCAL LIMITADA"]
[null,null,null,null,null,null,null,null,null,null,null,null,null,null,null,null,null,null,"78546640-3",785466403,"LUIS CONTRERAS LIQUIDADORES LIMITADA"]
[null,null,null,null,null,null,null,null,null,null,null,null,null,null,null,null,null,null,"7871135-3",78711353,"SANHUEZA RIQUELME PEDRO CELESTINO"]
[null,null,null,null,null,null,null,null,null,null,null,null,null,null,null,null,null,null,"78734200-0",787342000,"CHARLES TAYLOR CHILE S.A."]
[null,null,null,null,null,null,null,null,null,null,null,null,null,null,null,null,null,null,"78873240-6",788732406,"RENE EYHERALDE Y COMPAÑIA LIMITADA"]
[null,null,null,null,null,null,null,null,null,null,null,null,null,null,null,null,null,null,"7892226-5",78922265,"GIL RENERE TERESA JOSEFINA"]
[null,null,null,null,null,null,null,null,null,null,null,null,null,null,null,null,null,null,"78927730-3",789277303,"BARROS, FRONTAURA & VERBEKEN LIQUIDADORES DE SEGUROS CIA.LTD"]
[null,null,null,null,null,null,null,null,null,null,null,null,null,null,null,null,null,null,"78938920-9",789389209,"JPV ASOCIADOS AJUSTADORES ESPECIALIZADOS LIMITADA"]
[null,null,null,null,null,null,null,null,null,null,null,null,null,null,null,null,null,null,"7926672-8",79266728,"GARCÉS CONSTANZO RAFAEL EDUARDO"]
[null,null,null,null,null,null,null,null,null,null,null,null,null,null,null,null,null,null,"79513810-2",795138102,"GUERRERO Y COMPAÑIA LIMITADA"]
[null,null,null,null,null,null,null,null,null,null,null,null,null,null,null,null,null,null,"79606130-8",796061308,"ORGANIZACION MUESCHEN Y CIA. LTDA."]
[null,null,null,null,null,null,null,null,null,null,null,null,null,null,null,null,null,null,"8003612-4",80036124,"CARRASCO SANCHEZ CRISTIAN ALFREDO"]
[null,null,null,null,null,null,null,null,null,null,null,null,null,null,null,null,null,null,"8099746-9",80997469,"BRICEÑO FUENTES RUBEN DARIO"]
[null,null,null,null,null,null,null,null,null,null,null,null,null,null,null,null,null,null,"8161169-6",81611696,"SWAIN SMITH ALAN PATRICK"]
[null,null,null,null,null,null,null,null,null,null,null,null,null,null,null,null,null,null,"8282080-9",82820809,"GONZALEZ ASTUDILLO JAIME IVAN"]
[null,null,null,null,null,null,null,null,null,null,null,null,null,null,null,null,null,null,"8282210-0",82822100,"CHACON ROA JULIO ANIBAL"]
[null,null,null,null,null,null,null,null,null,null,null,null,null,null,null,null,null,null,"8306389-0",83063890,"DELAPORTE LIZAMA ERWIN EDMUNDO"]
[null,null,null,null,null,null,null,null,null,null,null,null,null,null,null,null,null,null,"8384308-K","8384308K","ARAYA MARTINEZ FRANCISCO JAVIER"]
[null,null,null,null,null,null,null,null,null,null,null,null,null,null,null,null,null,null,"8418454-3",84184543,"FIERRO JIMENEZ ALEJANDRO MIGUEL"]
[null,null,null,null,null,null,null,null,null,null,null,null,null,null,null,null,null,null,"8514017-5",85140175,"BRIEBA FUENTES CHRISTIAN IGNACIO"]
[null,null,null,null,null,null,null,null,null,null,null,null,null,null,null,null,null,null,"8612608-7",86126087,"LARRAÑAGA JIMENEZ ANDRES ANTONIO"]
[null,null,null,null,null,null,null,null,null,null,null,null,null,null,null,null,null,null,"8686261-1",86862611,"OLIVAREZ ABARZUA LUIS FRANCISCO"]
[null,null,null,null,null,null,null,null,null,null,null,null,null,null,null,null,null,null,"8713147-5",87131475,"ECHEVERRIA ARIAS RODRIGO ANTONIO"]
[null,null,null,null,null,null,null,null,null,null,null,null,null,null,null,null,null,null,"8822930-4",88229304,"MORA ULLOA ALVARO IGNACIO"]
[null,null,null,null,null,null,null,null,null,null,null,null,null,null,null,null,null,null,"8826675-7",88266757,"RIVERA ONETTO CRISTIAN DARIO"]
[null,null,null,null,null,null,null,null,null,null,null,null,null,null,null,null,null,null,"8832037-9",88320379,"RODRIGUEZ GASULLA-ECHAGUE JUAN IGNACIO"]
[null,null,null,null,null,null,null,null,null,null,null,null,null,null,null,null,null,null,"8836409-0",88364090,"HOLMGREN DEL PINO HELGA LUZ"]
[null,null,null,null,null,null,null,null,null,null,null,null,null,null,null,null,null,null,"88973400-0",889734000,"VERGARA Y VERGARA ASOCIADOS LIMITADA LIQ. OFICIALES SEG."]
[null,null,null,null,null,null,null,null,null,null,null,null,null,null,null,null,null,null,"8920838-6",89208386,"AUBEL BARAHONA RICARDO ALEJANDRO"]
[null,null,null,null,null,null,null,null,null,null,null,null,null,null,null,null,null,null,"8966624-4",89666244,"CATALDO SEVERINO XIMENA PAOLA"]
[null,null,null,null,null,null,null,null,null,null,null,null,null,null,null,null,null,null,"9029394-K","9029394K","LOPEZ ALTANER HECTOR MARCELO"]
[null,null,null,null,null,null,null,null,null,null,null,null,null,null,null,null,null,null,"9214774-6",92147746,"ILLANES BEZANILLA ANDRES"]
[null,null,null,null,null,null,null,null,null,null,null,null,null,null,null,null,null,null,"9274030-7",92740307,"FUENTES RIOSECO JOSE LUIS"]
[null,null,null,null,null,null,null,null,null,null,null,null,null,null,null,null,null,null,"9366564-3",93665643,"VARGAS JERIA FRANCISCO JAVIER"]
[null,null,null,null,null,null,null,null,null,null,null,null,null,null,null,null,null,null,"9396868-9",93968689,"MELO GONZALEZ JUAN CARLOS"]
[null,null,null,null,null,null,null,null,null,null,null,null,null,null,null,null,null,null,"9403400-0",94034000,"RAMIREZ SERRANO LUIS HERNAN"]
[null,null,null,null,null,null,null,null,null,null,null,null,null,null,null,null,null,null,"9451128-3",94511283,"HEISE IRARRAZAVAL VICTOR EDUARDO"]
[null,null,null,null,null,null,null,null,null,null,null,null,null,null,null,null,null,null,"9476442-4",94764424,"MONTT GONZALEZ JORGE ALDO"]
[null,null,null,null,null,null,null,null,null,null,null,null,null,null,null,null,null,null,"9499465-9",94994659,"LINDERMANN HUNTER ROBERTO ALEJANDRO"]
[null,null,null,null,null,null,null,null,null,null,null,null,null,null,null,null,null,null,"96511620-6",965116206,"SERVICIOS INTERNACIONALES DE INSPECCION S.A."]
[null,null,null,null,null,null,null,null,null,null,null,null,null,null,null,null,null,null,"96594270-K","96594270K","VIOLLIER Y ASOCIADOS LIQUIDADORES DE SEGUROS LIMITADA"]
[null,null,null,null,null,null,null,null,null,null,null,null,null,null,null,null,null,null,"9672913-8",96729138,"QUIROGA RIOBO JUAN PABLO"]
[null,null,null,null,null,null,null,null,null,null,null,null,null,null,null,null,null,null,"96801300-9",968013009,"BECKETT S.A LIQUIDADORES DE SEGUROS"]
[null,null,null,null,null,null,null,null,null,null,null,null,null,null,null,null,null,null,"96802220-2",968022202,"S.G.C. TRANSPORTE LIQUIDADORES DE SEGUROS S.A."]
[null,null,null,null,null,null,null,null,null,null,null,null,null,null,null,null,null,null,"96865840-9",968658409,"SGC AJUSTADORES S.A."]
[null,null,null,null,null,null,null,null,null,null,null,null,null,null,null,null,null,null,"96869160-0",968691600,"SAEZ ORTEGA Y VALDIVIESO LIQUIDADORES OFICIALES DE SEGUROS S.A."]
[null,null,null,null,null,null,null,null,null,null,null,null,null,null,null,null,null,null,"96923030-5",969230305,"SGC RECURSOS NATURALES SOCIEDAD ANÓNIMA"]
[null,null,null,null,null,null,null,null,null,null,null,null,null,null,null,null,null,null,"9743180-9",97431809,"PEREZ MARINKOVIC JUAN JOSE"]
[null,null,null,null,null,null,null,null,null,null,null,null,null,null,null,null,null,null,"9746673-4",97466734,"LARA ALBA ALVARO OLEGARIO"]
[null,null,null,null,null,null,null,null,null,null,null,null,null,null,null,null,null,null,"9769131-2",97691312,"MANRIQUEZ BURGOS MONICA CECILIA"]
[null,null,null,null,null,null,null,null,null,null,null,null,null,null,null,null,null,null,"9902006-7",99020067,"CATALDO CHAVEZ LUIS RAFAEL"]
[null,null,null,null,null,null,null,null,null,null,null,null,null,null,null,null,null,null,"9943156-3",99431563,"LEDERMANN STUTZ FELIPE ANDRES"]
[null,null,null,null,null,null,null,null,null,null,null,null,null,null,null,null,null,null,"9978023-1",99780231,"GALDAMES MORALES HECTOR MAURICIO"]